Workbook

Sheet Sheet1 (hidden)
G1: технологическая карта | N1: изд | O1: 1 | R1: партия | S1: 4-21
J2: август | L2: 2021
B3: коэф | C3: Ф. И. О. | D3: р/р | E3: 2 | F3: 3 | G3: 4 | H3: 5 | I3: 6 | J3: 9 | K3: 10 | L3: 11 | M3: 12 | N3: 13 | O3: 16 | P3: 17 | Q3: 18 | R3: 19 | S3: 20 | T3: 23 | U3: 24 | V3: 25 | W3: 26 | X3: 27 | Y3: 30 | Z3: 31
C4: работник6 | D4: 3/16 | I4: 1 | L4: 1 | M4: 4 | N4: 3.2 | O4: 2 | P4: 1.2 | AA4: =SUM(E4:Z4) -> 12.4
C5: работник7 | K5: 7.2 | AA5: 7.2
C6: работник1 | E6: 6.7 | I6: 4.7 | O6: 6.7 | P6: 2 | AA6: 20.1
C7: работник8 | E7: 7.2 | G7: 7.2 | H7: 5 | I7: 4.2 | J7: 7.2 | K7: 7.2 | L7: 6.2 | AA7: 44.2
C8: работник9 | E8: 7.2 | F8: 7.2 | AA8: 14.4
C9: работник3 | F9: 2.6 | H9: 7.2 | K9: 7.2 | AA9: 17
C10: работник10 | H10: 7.2 | I10: 7.2 | J10: 4 | K10: 4 | L10: 2 | AA10: 24.4
C11: работник10 | L11: 7.2 | M11: 7.2 | N11: 7.2 | O11: 7.2 | AA11: 28.8
C12: работник5 | K12: 4 | M12: 4 | AA12: 8
C13: работник11 | J13: 7.2 | K13: 7.2 | M13: 7.2 | AA13: 21.6
C14: работник2 | H14: 2.2 | AA14: 2.2
C15: работник4 | E15: 7.2 | F15: 7.2 | AA15: 14.4
B17: 1.1 | C17: работник5 | D17: 3/16 | E17: 7.2 | AA17: 7.2
B18: 1.1 | C18: работник2 | G18: 2 | AA18: 2
E19: =SUM(E4:E18) -> 35.5 | F19: 17 | G19: 9.2 | H19: 21.6 | I19: 17.1 | J19: 18.4 | K19: 36.8 | L19: 16.4 | M19: 22.4 | N19: 10.4 | O19: 15.9 | P19: 3.2 | Q19: 0 | R19: 0 | S19: 0 | T19: 0 | U19: 0 | V19: 0 | W19: 0 | X19: 0 | Y19: 0 | Z19: 0 | AA19: 223.9
G22: технологическая карта | N22: изд | O22: 2 | R22: партия | S22: 33-21
J23: август | L23: 2021
B24: коэф | C24: Ф. И. О. | D24: р/р | E24: 2 | F24: 3 | G24: 4 | H24: 5 | I24: 6 | J24: 9 | K24: 10 | L24: 11 | M24: 12 | N24: 13 | O24: 16 | P24: 17 | Q24: 18 | R24: 19 | S24: 20 | T24: 23 | U24: 24 | V24: 25 | W24: 26 | X24: 27 | Y24: 30 | Z24: 31
C25: работник6 | D25: 3/16 | M25: 2 | N25: 4 | AA25: =SUM(E25:Z25) -> 6
C26: работник10 | N26: 7.2 | O26: 7.2 | AA26: 14.4
C27: работник11 | L27: 7.2 | AA27: 7.2
C28: работник3 | E28: 3.2 | F28: 4.6 | G28: 2.8 | AA28: =SUM(E28:Z28) -> 10.6
C29: работник8 | S29: 7.2 | AA29: 7.2
C30: работник9 | G30: 7.2 | H30: 7.2 | I30: 7.2 | J30: 7.2 | K30: 7.2 | AA30: 36
E31: =SUM(E25:E30) -> 3.2 | F31: 4.6 | G31: 10 | H31: 7.2 | I31: 7.2 | J31: 7.2 | K31: 7.2 | L31: 7.2 | M31: 2 | N31: 11.2 | O31: 7.2 | P31: 0 | Q31: 0 | R31: 0 | S31: 7.2 | T31: 0 | U31: 0 | V31: 0 | W31: 0 | X31: 0 | Y31: 0 | Z31: 0 | AA31: =SUM(AA25:AA30) -> 81.4
G33: технологическая карта | N33: изд | O33: 3 | R33: партия | S33: 27-21
J34: август | L34: 2021
B35: коэф | C35: Ф. И. О. | D35: р/р | E35: 2 | F35: 3 | G35: 4 | H35: 5 | I35: 6 | J35: 9 | K35: 10 | L35: 11 | M35: 12 | N35: 13 | O35: 16 | P35: 17 | Q35: 18 | R35: 19 | S35: 20 | T35: 23 | U35: 24 | V35: 25 | W35: 26 | X35: 27 | Y35: 30 | Z35: 31
C36: работник3 | D36: 2/4 | I36: 2.8 | AA36: =SUM(E36:Z36) -> 2.8
C37: работник7 | Q37: 7.2 | AA37: =SUM(E37:Z37) -> 7.2
C39: работник7 | D39: 3/4 | E39: 3.2 | AA39: =SUM(E39:Z39) -> 3.2
C40: работник12 | E40: 4 | F40: 4 | G40: 4 | H40: 4 | N40: 7 | AA40: =SUM(E40:Z40) -> 23
C41: работник2 | J41: 4.2 | Q41: 2.2 | S41: 7.2 | U41: 7.2 | W41: 3.6 | AA41: =SUM(E41:Z41) -> 24.4
C42: работник13 | P42: 1.2 | AA42: 1.2
C44: работник2 | D44: 3/16 | T44: 1.8 | W44: 3.6 | X44: 7.2 | AA44: 12.6
C45: работник1 | P45: 4.7 | Q45: 6.7 | R45: 2 | U45: 3 | X45: 5.7 | Y45: 6.7 | Z45: 6.7 | AA45: 35.5
C46: работник10 | E46: 7.2 | F46: 7.2 | G46: 7.2 | P46: 7.2 | Q46: 7.2 | AA46: 36
C47: работник11 | F47: 7.2 | H47: 7.2 | I47: 7.2 | O47: 7.2 | P47: 7.2 | U47: 7.2 | V47: 7.2 | AA47: 50.4
C48: работник9 | L48: 7.2 | M48: 7.2 | N48: 7.2 | O48: 7.2 | P48: 7.2 | Q48: 7.2 | R48: 7.2 | S48: 7.2 | AA48: 57.6
C49: работник3 | E49: 4 | AA49: 4
C50: работник12 | E50: 3 | F50: 3 | G50: 3 | H50: 3 | K50: 3 | L50: 3 | AA50: 18
C51: работник5 | K51: 2.2 | M51: 2.2 | O51: 4.2 | S51: 3.2 | AA51: 11.8
C52: работник13 | N52: 7.2 | O52: 7.2 | P52: 6 | AA52: 20.4
C53: работник14 | R53: 6.7 | S53: 6.7 | AA53: 13.4
C54: работник15 | E54: 7.2 | AA54: 7.2
C55: работник6 | F55: 7.2 | H55: 7.2 | I55: 2 | Q55: 2 | AA55: 18.4
C56: работник4 | Y56: 7.2 | Z56: 7.2 | AA56: 14.4
B58: 1.5 | C58: работник7 | D58: 4/8 | E58: 4 | F58: 7.2 | G58: 7.2 | H58: 7.2 | I58: 7.2 | R58: 7.2 | S58: 7.2 | AA58: 47.2
B60: 1.1 | C60: работник5 | D60: 3/16 | J60: 4.2 | L60: 4.2 | AA60: 8.4
B61: 1.1 | C61: работник2 | G61: 5.2 | V61: 7.2 | AA61: 12.4
B62: 1.1 | C62: работник11 | E62: 7.2 | G62: 7.2 | AA62: 14.4
E63: =SUM(E36:E62) -> 39.8 | F63: =SUM(F36:F62) -> 35.8 | G63: 33.8 | H63: 28.6 | I63: 19.2 | J63: 8.4 | K63: 5.2 | L63: 14.4 | M63: 9.4 | N63: 21.4 | O63: 25.8 | P63: 33.5 | Q63: 32.5 | R63: 23.1 | S63: 31.5 | T63: 1.8 | U63: 17.4 | V63: 14.4 | W63: 7.2 | X63: 12.9 | Y63: 13.9 | Z63: 13.9 | AA63: =SUM(AA36:AA62) -> 443.9

Sheet сверхурочка
A1: месяц | B1: год | C1: изд | D1: партия | E1: коэф | F1: Ф. И. О. | G1: р/р | H1: 1 | I1: 2 | J1: 3 | K1: 4 | L1: 5 | M1: 6 | N1: 7 | O1: 8 | P1: 9 | Q1: 10 | R1: 11 | S1: 12 | T1: 13 | U1: 14 | V1: 15 | W1: 16 | X1: 17 | Y1: 18 | Z1: 19 | AA1: 20 | AB1: 21 | AC1: 22 | AD1: 23 | AE1: 24 | AF1: 25 | AG1: 26 | AH1: 27 | AI1: 28 | AJ1: 29 | AK1: 30 | AL1: 31 | AM1: сумма | AN1: Столбец1
A2: Декабрь | B2: 2021 | C2: 8 | D2: 4-21 | E2: 1.5 | F2: работник1 | G2: 4/8 | J2: 3 | K2: 3 | V2: 4 | AM2: =SUM(Таблица18[[#This Row],[1]:[30]]) -> 10 | AN2: =SUM(IF(AND(Таблица18[[#This Row],[р/р]]="3/24",H2>2),((2*1.5*$AR$2*Таблица18[[#This Row],[коэф]])+((Таблица18[[#This Row],[1]]-2)*2*$AR$2*Таблица18[[#This Row],[коэф]])), IF(AND(Таблица18[[#This Row],[р/р]]="3/16",H2>2),((2*1.5*$AR$3*Таблица18[[#This Row],[коэф]])+((Таблица18[[#This Row],[1]]-2)*2*$AR$3*Таблица18[[#This Row],[коэф]])), IF(AND(Таблица18[[#This Row],[р/р]]="4/8",H2>2),((2*1.5*$AR$4*1.5)+((Таблица18[[#This Row],[1]]-2)*2*$AR$4*1.5)), IF(AND(Таблица18[[#This Row],[р/р]]="3/4",H2>2),((2*1.5*$AR$5)+((Таблица18[[#This Row],[1]]-2)*2*$AR$5)),(Таблица18[[#This Row],[1]]*1.5*$AR$5)))))+ IF(AND(Таблица18[[#This Row],[р/р]]="3/24",I2>2),((2*1.5*$AR$2*Таблица18[[#This Row],[коэф]])+((Таблица18[[#This Row],[2]]-2)*2*$AR$2*Таблица18[[#This Row],[коэф]])), IF(AND(Таблица18[[#This Row],[р/р]]="3/16",I2>2),((2*1.5*$AR$3*Таблица18[[#This Row],[коэф]])+((Таблица18[[#This Row],[2]]-2)*2*$AR$3*Таблица18[[#This Row],[коэф]])), IF(AND(Таблица18[[#This Row],[р/р]]="4/8",I2>2),((2*1.5*$AR$4*1.5)+((Таблица18[[#This Row],[2]]-2)*2*$AR$4*1.5)), IF(AND(Таблица18[[#This Row],[р/р]]="3/4",I2>2),((2*1.5*$AR$5)+((Таблица18[[#This Row],[2]]-2)*2*$AR$5)),(Таблица18[[#This Row],[2]]*1.5*$AR$5)))))+ IF(AND(Таблица18[[#This Row],[р/р]]="3/24",J2>2),((2*1.5*$AR$2*Таблица18[[#This Row],[коэф]])+((Таблица18[[#This Row],[3]]-2)*2*$AR$2*Таблица18[[#This Row],[коэф]])), IF(AND(Таблица18[[#This Row],[р/р]]="3/16",J2>2),((2*1.5*$AR$3*Таблица18[[#This Row],[коэф]])+((Таблица18[[#This Row],[3]]-2)*2*$AR$3*Таблица18[[#This Row],[коэф]])), IF(AND(Таблица18[[#This Row],[р/р]]="4/8",J2>2),((2*1.5*$AR$4*1.5)+((Таблица18[[#This Row],[3]]-2)*2*$AR$4*1.5)), IF(AND(Таблица18[[#This Row],[р/р]]="3/4",J2>2),((2*1.5*$AR$5)+((Таблица18[[#This Row],[3]]-2)*2*$AR$5)),(Таблица18[[#This Row],[3]]*1.5*$AR$5)))))+ IF(AND(Таблица18[[#This Row],[р/р]]="3/24",K2>2),((2*1.5*$AR$2*Таблица18[[#This Row],[коэф]])+((Таблица18[[#This Row],[4]]-2)*2*$AR$2*Таблица18[[#This Row],[коэф]])), IF(AND(Таблица18[[#This Row],[р/р]]="3/16",K2>2),((2*1.5*$AR$3*Таблица18[[#This Row],[коэф]])+((Таблица18[[#This Row],[4]]-2)*2*$AR$3*Таблица18[[#This Row],[коэф]])), IF(AND(Таблица18[[#This Row],[р/р]]="4/8",K2>2),((2*1.5*$AR$4*1.5)+((Таблица18[[#This Row],[4]]-2)*2*$AR$4*1.5)), IF(AND(Таблица18[[#This Row],[р/р]]="3/4",K2>2),((2*1.5*$AR$5)+((Таблица18[[#This Row],[4]]-2)*2*$AR$5)),(Таблица18[[#This Row],[4]]*1.5*$AR$5)))))+ IF(AND(Таблица18[[#This Row],[р/р]]="3/24",V2>2),((2*1.5*$AR$2*Таблица18[[#This Row],[коэф]])+((Таблица18[[#This Row],[15]]-2)*2*$AR$2*Таблица18[[#This Row],[коэф]])), IF(AND(Таблица18[[#This Row],[р/р]]="3/16",V2>2),((2*1.5*$AR$3*Таблица18[[#This Row],[коэф]])+((Таблица18[[#This Row],[15]]-2)*2*$AR$3*Таблица18[[#This Row],[коэф]])), IF(AND(Таблица18[[#This Row],[р/р]]="4/8",V2>2),((2*1.5*$AR$4*1.5)+((Таблица18[[#This Row],[15]]-2)*2*$AR$4*1.5)), IF(AND(Таблица18[[#This Row],[р/р]]="3/4",V2>2),((2*1.5*$AR$5)+((Таблица18[[#This Row],[15]]-2)*2*$AR$5)),(Таблица18[[#This Row],[15]]*1.5*$AR$5)))))) -> 4419.66 | AR2: 181.04
A3: Декабрь | B3: 2021 | C3: 61 | D3: 42-21 | E3: 1 | F3: работник3 | G3: 3/24 | J3: 1 | AM3: =SUM(Таблица18[[#This Row],[1]:[30]]) -> 1 | AN3: =SUM(IF(AND(Таблица18[[#This Row],[р/р]]="3/24",H3>2),((2*1.5*$AR$2*Таблица18[[#This Row],[коэф]])+((Таблица18[[#This Row],[1]]-2)*2*$AR$2*Таблица18[[#This Row],[коэф]])), IF(AND(Таблица18[[#This Row],[р/р]]="3/16",H3>2),((2*1.5*$AR$3*Таблица18[[#This Row],[коэф]])+((Таблица18[[#This Row],[1]]-2)*2*$AR$3*Таблица18[[#This Row],[коэф]])), IF(AND(Таблица18[[#This Row],[р/р]]="4/8",H3>2),((2*1.5*$AR$4*1.5)+((Таблица18[[#This Row],[1]]-2)*2*$AR$4*1.5)), IF(AND(Таблица18[[#This Row],[р/р]]="3/4",H3>2),((2*1.5*$AR$5)+((Таблица18[[#This Row],[1]]-2)*2*$AR$5)),(Таблица18[[#This Row],[1]]*1.5*$AR$5)))))+ IF(AND(Таблица18[[#This Row],[р/р]]="3/24",I3>2),((2*1.5*$AR$2*Таблица18[[#This Row],[коэф]])+((Таблица18[[#This Row],[2]]-2)*2*$AR$2*Таблица18[[#This Row],[коэф]])), IF(AND(Таблица18[[#This Row],[р/р]]="3/16",I3>2),((2*1.5*$AR$3*Таблица18[[#This Row],[коэф]])+((Таблица18[[#This Row],[2]]-2)*2*$AR$3*Таблица18[[#This Row],[коэф]])), IF(AND(Таблица18[[#This Row],[р/р]]="4/8",I3>2),((2*1.5*$AR$4*1.5)+((Таблица18[[#This Row],[2]]-2)*2*$AR$4*1.5)), IF(AND(Таблица18[[#This Row],[р/р]]="3/4",I3>2),((2*1.5*$AR$5)+((Таблица18[[#This Row],[2]]-2)*2*$AR$5)),(Таблица18[[#This Row],[2]]*1.5*$AR$5)))))+ IF(AND(Таблица18[[#This Row],[р/р]]="3/24",J3>2),((2*1.5*$AR$2*Таблица18[[#This Row],[коэф]])+((Таблица18[[#This Row],[3]]-2)*2*$AR$2*Таблица18[[#This Row],[коэф]])), IF(AND(Таблица18[[#This Row],[р/р]]="3/16",J3>2),((2*1.5*$AR$3*Таблица18[[#This Row],[коэф]])+((Таблица18[[#This Row],[3]]-2)*2*$AR$3*Таблица18[[#This Row],[коэф]])), IF(AND(Таблица18[[#This Row],[р/р]]="4/8",J3>2),((2*1.5*$AR$4*1.5)+((Таблица18[[#This Row],[3]]-2)*2*$AR$4*1.5)), IF(AND(Таблица18[[#This Row],[р/р]]="3/4",J3>2),((2*1.5*$AR$5)+((Таблица18[[#This Row],[3]]-2)*2*$AR$5)),(Таблица18[[#This Row],[3]]*1.5*$AR$5)))))+ IF(AND(Таблица18[[#This Row],[р/р]]="3/24",K3>2),((2*1.5*$AR$2*Таблица18[[#This Row],[коэф]])+((Таблица18[[#This Row],[4]]-2)*2*$AR$2*Таблица18[[#This Row],[коэф]])), IF(AND(Таблица18[[#This Row],[р/р]]="3/16",K3>2),((2*1.5*$AR$3*Таблица18[[#This Row],[коэф]])+((Таблица18[[#This Row],[4]]-2)*2*$AR$3*Таблица18[[#This Row],[коэф]])), IF(AND(Таблица18[[#This Row],[р/р]]="4/8",K3>2),((2*1.5*$AR$4*1.5)+((Таблица18[[#This Row],[4]]-2)*2*$AR$4*1.5)), IF(AND(Таблица18[[#This Row],[р/р]]="3/4",K3>2),((2*1.5*$AR$5)+((Таблица18[[#This Row],[4]]-2)*2*$AR$5)),(Таблица18[[#This Row],[4]]*1.5*$AR$5)))))+ IF(AND(Таблица18[[#This Row],[р/р]]="3/24",V3>2),((2*1.5*$AR$2*Таблица18[[#This Row],[коэф]])+((Таблица18[[#This Row],[15]]-2)*2*$AR$2*Таблица18[[#This Row],[коэф]])), IF(AND(Таблица18[[#This Row],[р/р]]="3/16",V3>2),((2*1.5*$AR$3*Таблица18[[#This Row],[коэф]])+((Таблица18[[#This Row],[15]]-2)*2*$AR$3*Таблица18[[#This Row],[коэф]])), IF(AND(Таблица18[[#This Row],[р/р]]="4/8",V3>2),((2*1.5*$AR$4*1.5)+((Таблица18[[#This Row],[15]]-2)*2*$AR$4*1.5)), IF(AND(Таблица18[[#This Row],[р/р]]="3/4",V3>2),((2*1.5*$AR$5)+((Таблица18[[#This Row],[15]]-2)*2*$AR$5)),(Таблица18[[#This Row],[15]]*1.5*$AR$5)))))) -> 227.76 | AR3: 169.36
A4: Декабрь | B4: 2021 | C4: 61 | D4: 42-21 | E4: 1 | F4: работник4 | G4: 3/16 | K4: 4.2 | AM4: =SUM(Таблица18[[#This Row],[1]:[30]]) -> 4.2 | AN4: =SUM(IF(AND(Таблица18[[#This Row],[р/р]]="3/24",H4>2),((2*1.5*$AR$2*Таблица18[[#This Row],[коэф]])+((Таблица18[[#This Row],[1]]-2)*2*$AR$2*Таблица18[[#This Row],[коэф]])), IF(AND(Таблица18[[#This Row],[р/р]]="3/16",H4>2),((2*1.5*$AR$3*Таблица18[[#This Row],[коэф]])+((Таблица18[[#This Row],[1]]-2)*2*$AR$3*Таблица18[[#This Row],[коэф]])), IF(AND(Таблица18[[#This Row],[р/р]]="4/8",H4>2),((2*1.5*$AR$4*1.5)+((Таблица18[[#This Row],[1]]-2)*2*$AR$4*1.5)), IF(AND(Таблица18[[#This Row],[р/р]]="3/4",H4>2),((2*1.5*$AR$5)+((Таблица18[[#This Row],[1]]-2)*2*$AR$5)),(Таблица18[[#This Row],[1]]*1.5*$AR$5)))))+ IF(AND(Таблица18[[#This Row],[р/р]]="3/24",I4>2),((2*1.5*$AR$2*Таблица18[[#This Row],[коэф]])+((Таблица18[[#This Row],[2]]-2)*2*$AR$2*Таблица18[[#This Row],[коэф]])), IF(AND(Таблица18[[#This Row],[р/р]]="3/16",I4>2),((2*1.5*$AR$3*Таблица18[[#This Row],[коэф]])+((Таблица18[[#This Row],[2]]-2)*2*$AR$3*Таблица18[[#This Row],[коэф]])), IF(AND(Таблица18[[#This Row],[р/р]]="4/8",I4>2),((2*1.5*$AR$4*1.5)+((Таблица18[[#This Row],[2]]-2)*2*$AR$4*1.5)), IF(AND(Таблица18[[#This Row],[р/р]]="3/4",I4>2),((2*1.5*$AR$5)+((Таблица18[[#This Row],[2]]-2)*2*$AR$5)),(Таблица18[[#This Row],[2]]*1.5*$AR$5)))))+ IF(AND(Таблица18[[#This Row],[р/р]]="3/24",J4>2),((2*1.5*$AR$2*Таблица18[[#This Row],[коэф]])+((Таблица18[[#This Row],[3]]-2)*2*$AR$2*Таблица18[[#This Row],[коэф]])), IF(AND(Таблица18[[#This Row],[р/р]]="3/16",J4>2),((2*1.5*$AR$3*Таблица18[[#This Row],[коэф]])+((Таблица18[[#This Row],[3]]-2)*2*$AR$3*Таблица18[[#This Row],[коэф]])), IF(AND(Таблица18[[#This Row],[р/р]]="4/8",J4>2),((2*1.5*$AR$4*1.5)+((Таблица18[[#This Row],[3]]-2)*2*$AR$4*1.5)), IF(AND(Таблица18[[#This Row],[р/р]]="3/4",J4>2),((2*1.5*$AR$5)+((Таблица18[[#This Row],[3]]-2)*2*$AR$5)),(Таблица18[[#This Row],[3]]*1.5*$AR$5)))))+ IF(AND(Таблица18[[#This Row],[р/р]]="3/24",K4>2),((2*1.5*$AR$2*Таблица18[[#This Row],[коэф]])+((Таблица18[[#This Row],[4]]-2)*2*$AR$2*Таблица18[[#This Row],[коэф]])), IF(AND(Таблица18[[#This Row],[р/р]]="3/16",K4>2),((2*1.5*$AR$3*Таблица18[[#This Row],[коэф]])+((Таблица18[[#This Row],[4]]-2)*2*$AR$3*Таблица18[[#This Row],[коэф]])), IF(AND(Таблица18[[#This Row],[р/р]]="4/8",K4>2),((2*1.5*$AR$4*1.5)+((Таблица18[[#This Row],[4]]-2)*2*$AR$4*1.5)), IF(AND(Таблица18[[#This Row],[р/р]]="3/4",K4>2),((2*1.5*$AR$5)+((Таблица18[[#This Row],[4]]-2)*2*$AR$5)),(Таблица18[[#This Row],[4]]*1.5*$AR$5)))))+ IF(AND(Таблица18[[#This Row],[р/р]]="3/24",V4>2),((2*1.5*$AR$2*Таблица18[[#This Row],[коэф]])+((Таблица18[[#This Row],[15]]-2)*2*$AR$2*Таблица18[[#This Row],[коэф]])), IF(AND(Таблица18[[#This Row],[р/р]]="3/16",V4>2),((2*1.5*$AR$3*Таблица18[[#This Row],[коэф]])+((Таблица18[[#This Row],[15]]-2)*2*$AR$3*Таблица18[[#This Row],[коэф]])), IF(AND(Таблица18[[#This Row],[р/р]]="4/8",V4>2),((2*1.5*$AR$4*1.5)+((Таблица18[[#This Row],[15]]-2)*2*$AR$4*1.5)), IF(AND(Таблица18[[#This Row],[р/р]]="3/4",V4>2),((2*1.5*$AR$5)+((Таблица18[[#This Row],[15]]-2)*2*$AR$5)),(Таблица18[[#This Row],[15]]*1.5*$AR$5)))))) -> 1253.264 | AR4: 173.32
A5: Декабрь | B5: 2021 | C5: 1 | D5: 10-21 | E5: 1.5 | F5: работник6 | G5: 4/8 | I5: 4 | AM5: =SUM(Таблица18[[#This Row],[1]:[30]]) -> 4 | AN5: =SUM(IF(AND(Таблица18[[#This Row],[р/р]]="3/24",H5>2),((2*1.5*$AR$2*Таблица18[[#This Row],[коэф]])+((Таблица18[[#This Row],[1]]-2)*2*$AR$2*Таблица18[[#This Row],[коэф]])), IF(AND(Таблица18[[#This Row],[р/р]]="3/16",H5>2),((2*1.5*$AR$3*Таблица18[[#This Row],[коэф]])+((Таблица18[[#This Row],[1]]-2)*2*$AR$3*Таблица18[[#This Row],[коэф]])), IF(AND(Таблица18[[#This Row],[р/р]]="4/8",H5>2),((2*1.5*$AR$4*1.5)+((Таблица18[[#This Row],[1]]-2)*2*$AR$4*1.5)), IF(AND(Таблица18[[#This Row],[р/р]]="3/4",H5>2),((2*1.5*$AR$5)+((Таблица18[[#This Row],[1]]-2)*2*$AR$5)),(Таблица18[[#This Row],[1]]*1.5*$AR$5)))))+ IF(AND(Таблица18[[#This Row],[р/р]]="3/24",I5>2),((2*1.5*$AR$2*Таблица18[[#This Row],[коэф]])+((Таблица18[[#This Row],[2]]-2)*2*$AR$2*Таблица18[[#This Row],[коэф]])), IF(AND(Таблица18[[#This Row],[р/р]]="3/16",I5>2),((2*1.5*$AR$3*Таблица18[[#This Row],[коэф]])+((Таблица18[[#This Row],[2]]-2)*2*$AR$3*Таблица18[[#This Row],[коэф]])), IF(AND(Таблица18[[#This Row],[р/р]]="4/8",I5>2),((2*1.5*$AR$4*1.5)+((Таблица18[[#This Row],[2]]-2)*2*$AR$4*1.5)), IF(AND(Таблица18[[#This Row],[р/р]]="3/4",I5>2),((2*1.5*$AR$5)+((Таблица18[[#This Row],[2]]-2)*2*$AR$5)),(Таблица18[[#This Row],[2]]*1.5*$AR$5)))))+ IF(AND(Таблица18[[#This Row],[р/р]]="3/24",J5>2),((2*1.5*$AR$2*Таблица18[[#This Row],[коэф]])+((Таблица18[[#This Row],[3]]-2)*2*$AR$2*Таблица18[[#This Row],[коэф]])), IF(AND(Таблица18[[#This Row],[р/р]]="3/16",J5>2),((2*1.5*$AR$3*Таблица18[[#This Row],[коэф]])+((Таблица18[[#This Row],[3]]-2)*2*$AR$3*Таблица18[[#This Row],[коэф]])), IF(AND(Таблица18[[#This Row],[р/р]]="4/8",J5>2),((2*1.5*$AR$4*1.5)+((Таблица18[[#This Row],[3]]-2)*2*$AR$4*1.5)), IF(AND(Таблица18[[#This Row],[р/р]]="3/4",J5>2),((2*1.5*$AR$5)+((Таблица18[[#This Row],[3]]-2)*2*$AR$5)),(Таблица18[[#This Row],[3]]*1.5*$AR$5)))))+ IF(AND(Таблица18[[#This Row],[р/р]]="3/24",K5>2),((2*1.5*$AR$2*Таблица18[[#This Row],[коэф]])+((Таблица18[[#This Row],[4]]-2)*2*$AR$2*Таблица18[[#This Row],[коэф]])), IF(AND(Таблица18[[#This Row],[р/р]]="3/16",K5>2),((2*1.5*$AR$3*Таблица18[[#This Row],[коэф]])+((Таблица18[[#This Row],[4]]-2)*2*$AR$3*Таблица18[[#This Row],[коэф]])), IF(AND(Таблица18[[#This Row],[р/р]]="4/8",K5>2),((2*1.5*$AR$4*1.5)+((Таблица18[[#This Row],[4]]-2)*2*$AR$4*1.5)), IF(AND(Таблица18[[#This Row],[р/р]]="3/4",K5>2),((2*1.5*$AR$5)+((Таблица18[[#This Row],[4]]-2)*2*$AR$5)),(Таблица18[[#This Row],[4]]*1.5*$AR$5)))))+ IF(AND(Таблица18[[#This Row],[р/р]]="3/24",V5>2),((2*1.5*$AR$2*Таблица18[[#This Row],[коэф]])+((Таблица18[[#This Row],[15]]-2)*2*$AR$2*Таблица18[[#This Row],[коэф]])), IF(AND(Таблица18[[#This Row],[р/р]]="3/16",V5>2),((2*1.5*$AR$3*Таблица18[[#This Row],[коэф]])+((Таблица18[[#This Row],[15]]-2)*2*$AR$3*Таблица18[[#This Row],[коэф]])), IF(AND(Таблица18[[#This Row],[р/р]]="4/8",V5>2),((2*1.5*$AR$4*1.5)+((Таблица18[[#This Row],[15]]-2)*2*$AR$4*1.5)), IF(AND(Таблица18[[#This Row],[р/р]]="3/4",V5>2),((2*1.5*$AR$5)+((Таблица18[[#This Row],[15]]-2)*2*$AR$5)),(Таблица18[[#This Row],[15]]*1.5*$AR$5)))))) -> 1819.86 | AR5: 151.84
A6: Декабрь | B6: 2021 | C6: 6 | D6: 45-21 | E6: 1 | F6: работник7 | G6: 3/16 | K6: 3.8 | AM6: =SUM(Таблица18[[#This Row],[1]:[30]]) -> 3.8 | AN6: =SUM(IF(AND(Таблица18[[#This Row],[р/р]]="3/24",H6>2),((2*1.5*$AR$2*Таблица18[[#This Row],[коэф]])+((Таблица18[[#This Row],[1]]-2)*2*$AR$2*Таблица18[[#This Row],[коэф]])), IF(AND(Таблица18[[#This Row],[р/р]]="3/16",H6>2),((2*1.5*$AR$3*Таблица18[[#This Row],[коэф]])+((Таблица18[[#This Row],[1]]-2)*2*$AR$3*Таблица18[[#This Row],[коэф]])), IF(AND(Таблица18[[#This Row],[р/р]]="4/8",H6>2),((2*1.5*$AR$4*1.5)+((Таблица18[[#This Row],[1]]-2)*2*$AR$4*1.5)), IF(AND(Таблица18[[#This Row],[р/р]]="3/4",H6>2),((2*1.5*$AR$5)+((Таблица18[[#This Row],[1]]-2)*2*$AR$5)),(Таблица18[[#This Row],[1]]*1.5*$AR$5)))))+ IF(AND(Таблица18[[#This Row],[р/р]]="3/24",I6>2),((2*1.5*$AR$2*Таблица18[[#This Row],[коэф]])+((Таблица18[[#This Row],[2]]-2)*2*$AR$2*Таблица18[[#This Row],[коэф]])), IF(AND(Таблица18[[#This Row],[р/р]]="3/16",I6>2),((2*1.5*$AR$3*Таблица18[[#This Row],[коэф]])+((Таблица18[[#This Row],[2]]-2)*2*$AR$3*Таблица18[[#This Row],[коэф]])), IF(AND(Таблица18[[#This Row],[р/р]]="4/8",I6>2),((2*1.5*$AR$4*1.5)+((Таблица18[[#This Row],[2]]-2)*2*$AR$4*1.5)), IF(AND(Таблица18[[#This Row],[р/р]]="3/4",I6>2),((2*1.5*$AR$5)+((Таблица18[[#This Row],[2]]-2)*2*$AR$5)),(Таблица18[[#This Row],[2]]*1.5*$AR$5)))))+ IF(AND(Таблица18[[#This Row],[р/р]]="3/24",J6>2),((2*1.5*$AR$2*Таблица18[[#This Row],[коэф]])+((Таблица18[[#This Row],[3]]-2)*2*$AR$2*Таблица18[[#This Row],[коэф]])), IF(AND(Таблица18[[#This Row],[р/р]]="3/16",J6>2),((2*1.5*$AR$3*Таблица18[[#This Row],[коэф]])+((Таблица18[[#This Row],[3]]-2)*2*$AR$3*Таблица18[[#This Row],[коэф]])), IF(AND(Таблица18[[#This Row],[р/р]]="4/8",J6>2),((2*1.5*$AR$4*1.5)+((Таблица18[[#This Row],[3]]-2)*2*$AR$4*1.5)), IF(AND(Таблица18[[#This Row],[р/р]]="3/4",J6>2),((2*1.5*$AR$5)+((Таблица18[[#This Row],[3]]-2)*2*$AR$5)),(Таблица18[[#This Row],[3]]*1.5*$AR$5)))))+ IF(AND(Таблица18[[#This Row],[р/р]]="3/24",K6>2),((2*1.5*$AR$2*Таблица18[[#This Row],[коэф]])+((Таблица18[[#This Row],[4]]-2)*2*$AR$2*Таблица18[[#This Row],[коэф]])), IF(AND(Таблица18[[#This Row],[р/р]]="3/16",K6>2),((2*1.5*$AR$3*Таблица18[[#This Row],[коэф]])+((Таблица18[[#This Row],[4]]-2)*2*$AR$3*Таблица18[[#This Row],[коэф]])), IF(AND(Таблица18[[#This Row],[р/р]]="4/8",K6>2),((2*1.5*$AR$4*1.5)+((Таблица18[[#This Row],[4]]-2)*2*$AR$4*1.5)), IF(AND(Таблица18[[#This Row],[р/р]]="3/4",K6>2),((2*1.5*$AR$5)+((Таблица18[[#This Row],[4]]-2)*2*$AR$5)),(Таблица18[[#This Row],[4]]*1.5*$AR$5)))))+ IF(AND(Таблица18[[#This Row],[р/р]]="3/24",V6>2),((2*1.5*$AR$2*Таблица18[[#This Row],[коэф]])+((Таблица18[[#This Row],[15]]-2)*2*$AR$2*Таблица18[[#This Row],[коэф]])), IF(AND(Таблица18[[#This Row],[р/р]]="3/16",V6>2),((2*1.5*$AR$3*Таблица18[[#This Row],[коэф]])+((Таблица18[[#This Row],[15]]-2)*2*$AR$3*Таблица18[[#This Row],[коэф]])), IF(AND(Таблица18[[#This Row],[р/р]]="4/8",V6>2),((2*1.5*$AR$4*1.5)+((Таблица18[[#This Row],[15]]-2)*2*$AR$4*1.5)), IF(AND(Таблица18[[#This Row],[р/р]]="3/4",V6>2),((2*1.5*$AR$5)+((Таблица18[[#This Row],[15]]-2)*2*$AR$5)),(Таблица18[[#This Row],[15]]*1.5*$AR$5)))))) -> 1117.776
A7: Декабрь | B7: 2021 | C7: 8 | D7: 4-21 | E7: 1 | F7: работник8 | G7: 3/16 | V7: 3 | AM7: =SUM(Таблица18[[#This Row],[1]:[30]]) -> 3 | AN7: =SUM(IF(AND(Таблица18[[#This Row],[р/р]]="3/24",H7>2),((2*1.5*$AR$2*Таблица18[[#This Row],[коэф]])+((Таблица18[[#This Row],[1]]-2)*2*$AR$2*Таблица18[[#This Row],[коэф]])), IF(AND(Таблица18[[#This Row],[р/р]]="3/16",H7>2),((2*1.5*$AR$3*Таблица18[[#This Row],[коэф]])+((Таблица18[[#This Row],[1]]-2)*2*$AR$3*Таблица18[[#This Row],[коэф]])), IF(AND(Таблица18[[#This Row],[р/р]]="4/8",H7>2),((2*1.5*$AR$4*1.5)+((Таблица18[[#This Row],[1]]-2)*2*$AR$4*1.5)), IF(AND(Таблица18[[#This Row],[р/р]]="3/4",H7>2),((2*1.5*$AR$5)+((Таблица18[[#This Row],[1]]-2)*2*$AR$5)),(Таблица18[[#This Row],[1]]*1.5*$AR$5)))))+ IF(AND(Таблица18[[#This Row],[р/р]]="3/24",I7>2),((2*1.5*$AR$2*Таблица18[[#This Row],[коэф]])+((Таблица18[[#This Row],[2]]-2)*2*$AR$2*Таблица18[[#This Row],[коэф]])), IF(AND(Таблица18[[#This Row],[р/р]]="3/16",I7>2),((2*1.5*$AR$3*Таблица18[[#This Row],[коэф]])+((Таблица18[[#This Row],[2]]-2)*2*$AR$3*Таблица18[[#This Row],[коэф]])), IF(AND(Таблица18[[#This Row],[р/р]]="4/8",I7>2),((2*1.5*$AR$4*1.5)+((Таблица18[[#This Row],[2]]-2)*2*$AR$4*1.5)), IF(AND(Таблица18[[#This Row],[р/р]]="3/4",I7>2),((2*1.5*$AR$5)+((Таблица18[[#This Row],[2]]-2)*2*$AR$5)),(Таблица18[[#This Row],[2]]*1.5*$AR$5)))))+ IF(AND(Таблица18[[#This Row],[р/р]]="3/24",J7>2),((2*1.5*$AR$2*Таблица18[[#This Row],[коэф]])+((Таблица18[[#This Row],[3]]-2)*2*$AR$2*Таблица18[[#This Row],[коэф]])), IF(AND(Таблица18[[#This Row],[р/р]]="3/16",J7>2),((2*1.5*$AR$3*Таблица18[[#This Row],[коэф]])+((Таблица18[[#This Row],[3]]-2)*2*$AR$3*Таблица18[[#This Row],[коэф]])), IF(AND(Таблица18[[#This Row],[р/р]]="4/8",J7>2),((2*1.5*$AR$4*1.5)+((Таблица18[[#This Row],[3]]-2)*2*$AR$4*1.5)), IF(AND(Таблица18[[#This Row],[р/р]]="3/4",J7>2),((2*1.5*$AR$5)+((Таблица18[[#This Row],[3]]-2)*2*$AR$5)),(Таблица18[[#This Row],[3]]*1.5*$AR$5)))))+ IF(AND(Таблица18[[#This Row],[р/р]]="3/24",K7>2),((2*1.5*$AR$2*Таблица18[[#This Row],[коэф]])+((Таблица18[[#This Row],[4]]-2)*2*$AR$2*Таблица18[[#This Row],[коэф]])), IF(AND(Таблица18[[#This Row],[р/р]]="3/16",K7>2),((2*1.5*$AR$3*Таблица18[[#This Row],[коэф]])+((Таблица18[[#This Row],[4]]-2)*2*$AR$3*Таблица18[[#This Row],[коэф]])), IF(AND(Таблица18[[#This Row],[р/р]]="4/8",K7>2),((2*1.5*$AR$4*1.5)+((Таблица18[[#This Row],[4]]-2)*2*$AR$4*1.5)), IF(AND(Таблица18[[#This Row],[р/р]]="3/4",K7>2),((2*1.5*$AR$5)+((Таблица18[[#This Row],[4]]-2)*2*$AR$5)),(Таблица18[[#This Row],[4]]*1.5*$AR$5)))))+ IF(AND(Таблица18[[#This Row],[р/р]]="3/24",V7>2),((2*1.5*$AR$2*Таблица18[[#This Row],[коэф]])+((Таблица18[[#This Row],[15]]-2)*2*$AR$2*Таблица18[[#This Row],[коэф]])), IF(AND(Таблица18[[#This Row],[р/р]]="3/16",V7>2),((2*1.5*$AR$3*Таблица18[[#This Row],[коэф]])+((Таблица18[[#This Row],[15]]-2)*2*$AR$3*Таблица18[[#This Row],[коэф]])), IF(AND(Таблица18[[#This Row],[р/р]]="4/8",V7>2),((2*1.5*$AR$4*1.5)+((Таблица18[[#This Row],[15]]-2)*2*$AR$4*1.5)), IF(AND(Таблица18[[#This Row],[р/р]]="3/4",V7>2),((2*1.5*$AR$5)+((Таблица18[[#This Row],[15]]-2)*2*$AR$5)),(Таблица18[[#This Row],[15]]*1.5*$AR$5)))))) -> 846.8
A8: Декабрь | B8: 2021 | C8: 61 | D8: 42-21 | E8: 1 | F8: работник9 | G8: 3/16 | K8: 4 | AM8: =SUM(Таблица18[[#This Row],[1]:[30]]) -> 4 | AN8: =SUM(IF(AND(Таблица18[[#This Row],[р/р]]="3/24",H8>2),((2*1.5*$AR$2*Таблица18[[#This Row],[коэф]])+((Таблица18[[#This Row],[1]]-2)*2*$AR$2*Таблица18[[#This Row],[коэф]])), IF(AND(Таблица18[[#This Row],[р/р]]="3/16",H8>2),((2*1.5*$AR$3*Таблица18[[#This Row],[коэф]])+((Таблица18[[#This Row],[1]]-2)*2*$AR$3*Таблица18[[#This Row],[коэф]])), IF(AND(Таблица18[[#This Row],[р/р]]="4/8",H8>2),((2*1.5*$AR$4*1.5)+((Таблица18[[#This Row],[1]]-2)*2*$AR$4*1.5)), IF(AND(Таблица18[[#This Row],[р/р]]="3/4",H8>2),((2*1.5*$AR$5)+((Таблица18[[#This Row],[1]]-2)*2*$AR$5)),(Таблица18[[#This Row],[1]]*1.5*$AR$5)))))+ IF(AND(Таблица18[[#This Row],[р/р]]="3/24",I8>2),((2*1.5*$AR$2*Таблица18[[#This Row],[коэф]])+((Таблица18[[#This Row],[2]]-2)*2*$AR$2*Таблица18[[#This Row],[коэф]])), IF(AND(Таблица18[[#This Row],[р/р]]="3/16",I8>2),((2*1.5*$AR$3*Таблица18[[#This Row],[коэф]])+((Таблица18[[#This Row],[2]]-2)*2*$AR$3*Таблица18[[#This Row],[коэф]])), IF(AND(Таблица18[[#This Row],[р/р]]="4/8",I8>2),((2*1.5*$AR$4*1.5)+((Таблица18[[#This Row],[2]]-2)*2*$AR$4*1.5)), IF(AND(Таблица18[[#This Row],[р/р]]="3/4",I8>2),((2*1.5*$AR$5)+((Таблица18[[#This Row],[2]]-2)*2*$AR$5)),(Таблица18[[#This Row],[2]]*1.5*$AR$5)))))+ IF(AND(Таблица18[[#This Row],[р/р]]="3/24",J8>2),((2*1.5*$AR$2*Таблица18[[#This Row],[коэф]])+((Таблица18[[#This Row],[3]]-2)*2*$AR$2*Таблица18[[#This Row],[коэф]])), IF(AND(Таблица18[[#This Row],[р/р]]="3/16",J8>2),((2*1.5*$AR$3*Таблица18[[#This Row],[коэф]])+((Таблица18[[#This Row],[3]]-2)*2*$AR$3*Таблица18[[#This Row],[коэф]])), IF(AND(Таблица18[[#This Row],[р/р]]="4/8",J8>2),((2*1.5*$AR$4*1.5)+((Таблица18[[#This Row],[3]]-2)*2*$AR$4*1.5)), IF(AND(Таблица18[[#This Row],[р/р]]="3/4",J8>2),((2*1.5*$AR$5)+((Таблица18[[#This Row],[3]]-2)*2*$AR$5)),(Таблица18[[#This Row],[3]]*1.5*$AR$5)))))+ IF(AND(Таблица18[[#This Row],[р/р]]="3/24",K8>2),((2*1.5*$AR$2*Таблица18[[#This Row],[коэф]])+((Таблица18[[#This Row],[4]]-2)*2*$AR$2*Таблица18[[#This Row],[коэф]])), IF(AND(Таблица18[[#This Row],[р/р]]="3/16",K8>2),((2*1.5*$AR$3*Таблица18[[#This Row],[коэф]])+((Таблица18[[#This Row],[4]]-2)*2*$AR$3*Таблица18[[#This Row],[коэф]])), IF(AND(Таблица18[[#This Row],[р/р]]="4/8",K8>2),((2*1.5*$AR$4*1.5)+((Таблица18[[#This Row],[4]]-2)*2*$AR$4*1.5)), IF(AND(Таблица18[[#This Row],[р/р]]="3/4",K8>2),((2*1.5*$AR$5)+((Таблица18[[#This Row],[4]]-2)*2*$AR$5)),(Таблица18[[#This Row],[4]]*1.5*$AR$5)))))+ IF(AND(Таблица18[[#This Row],[р/р]]="3/24",V8>2),((2*1.5*$AR$2*Таблица18[[#This Row],[коэф]])+((Таблица18[[#This Row],[15]]-2)*2*$AR$2*Таблица18[[#This Row],[коэф]])), IF(AND(Таблица18[[#This Row],[р/р]]="3/16",V8>2),((2*1.5*$AR$3*Таблица18[[#This Row],[коэф]])+((Таблица18[[#This Row],[15]]-2)*2*$AR$3*Таблица18[[#This Row],[коэф]])), IF(AND(Таблица18[[#This Row],[р/р]]="4/8",V8>2),((2*1.5*$AR$4*1.5)+((Таблица18[[#This Row],[15]]-2)*2*$AR$4*1.5)), IF(AND(Таблица18[[#This Row],[р/р]]="3/4",V8>2),((2*1.5*$AR$5)+((Таблица18[[#This Row],[15]]-2)*2*$AR$5)),(Таблица18[[#This Row],[15]]*1.5*$AR$5)))))) -> 1185.52
A9: Декабрь | B9: 2021 | C9: 61 | D9: 42-21 | E9: 1 | F9: работник10 | G9: 3/16 | K9: 4.5 | AM9: =SUM(Таблица18[[#This Row],[1]:[30]]) -> 4.5 | AN9: =SUM(IF(AND(Таблица18[[#This Row],[р/р]]="3/24",H9>2),((2*1.5*$AR$2*Таблица18[[#This Row],[коэф]])+((Таблица18[[#This Row],[1]]-2)*2*$AR$2*Таблица18[[#This Row],[коэф]])), IF(AND(Таблица18[[#This Row],[р/р]]="3/16",H9>2),((2*1.5*$AR$3*Таблица18[[#This Row],[коэф]])+((Таблица18[[#This Row],[1]]-2)*2*$AR$3*Таблица18[[#This Row],[коэф]])), IF(AND(Таблица18[[#This Row],[р/р]]="4/8",H9>2),((2*1.5*$AR$4*1.5)+((Таблица18[[#This Row],[1]]-2)*2*$AR$4*1.5)), IF(AND(Таблица18[[#This Row],[р/р]]="3/4",H9>2),((2*1.5*$AR$5)+((Таблица18[[#This Row],[1]]-2)*2*$AR$5)),(Таблица18[[#This Row],[1]]*1.5*$AR$5)))))+ IF(AND(Таблица18[[#This Row],[р/р]]="3/24",I9>2),((2*1.5*$AR$2*Таблица18[[#This Row],[коэф]])+((Таблица18[[#This Row],[2]]-2)*2*$AR$2*Таблица18[[#This Row],[коэф]])), IF(AND(Таблица18[[#This Row],[р/р]]="3/16",I9>2),((2*1.5*$AR$3*Таблица18[[#This Row],[коэф]])+((Таблица18[[#This Row],[2]]-2)*2*$AR$3*Таблица18[[#This Row],[коэф]])), IF(AND(Таблица18[[#This Row],[р/р]]="4/8",I9>2),((2*1.5*$AR$4*1.5)+((Таблица18[[#This Row],[2]]-2)*2*$AR$4*1.5)), IF(AND(Таблица18[[#This Row],[р/р]]="3/4",I9>2),((2*1.5*$AR$5)+((Таблица18[[#This Row],[2]]-2)*2*$AR$5)),(Таблица18[[#This Row],[2]]*1.5*$AR$5)))))+ IF(AND(Таблица18[[#This Row],[р/р]]="3/24",J9>2),((2*1.5*$AR$2*Таблица18[[#This Row],[коэф]])+((Таблица18[[#This Row],[3]]-2)*2*$AR$2*Таблица18[[#This Row],[коэф]])), IF(AND(Таблица18[[#This Row],[р/р]]="3/16",J9>2),((2*1.5*$AR$3*Таблица18[[#This Row],[коэф]])+((Таблица18[[#This Row],[3]]-2)*2*$AR$3*Таблица18[[#This Row],[коэф]])), IF(AND(Таблица18[[#This Row],[р/р]]="4/8",J9>2),((2*1.5*$AR$4*1.5)+((Таблица18[[#This Row],[3]]-2)*2*$AR$4*1.5)), IF(AND(Таблица18[[#This Row],[р/р]]="3/4",J9>2),((2*1.5*$AR$5)+((Таблица18[[#This Row],[3]]-2)*2*$AR$5)),(Таблица18[[#This Row],[3]]*1.5*$AR$5)))))+ IF(AND(Таблица18[[#This Row],[р/р]]="3/24",K9>2),((2*1.5*$AR$2*Таблица18[[#This Row],[коэф]])+((Таблица18[[#This Row],[4]]-2)*2*$AR$2*Таблица18[[#This Row],[коэф]])), IF(AND(Таблица18[[#This Row],[р/р]]="3/16",K9>2),((2*1.5*$AR$3*Таблица18[[#This Row],[коэф]])+((Таблица18[[#This Row],[4]]-2)*2*$AR$3*Таблица18[[#This Row],[коэф]])), IF(AND(Таблица18[[#This Row],[р/р]]="4/8",K9>2),((2*1.5*$AR$4*1.5)+((Таблица18[[#This Row],[4]]-2)*2*$AR$4*1.5)), IF(AND(Таблица18[[#This Row],[р/р]]="3/4",K9>2),((2*1.5*$AR$5)+((Таблица18[[#This Row],[4]]-2)*2*$AR$5)),(Таблица18[[#This Row],[4]]*1.5*$AR$5)))))+ IF(AND(Таблица18[[#This Row],[р/р]]="3/24",V9>2),((2*1.5*$AR$2*Таблица18[[#This Row],[коэф]])+((Таблица18[[#This Row],[15]]-2)*2*$AR$2*Таблица18[[#This Row],[коэф]])), IF(AND(Таблица18[[#This Row],[р/р]]="3/16",V9>2),((2*1.5*$AR$3*Таблица18[[#This Row],[коэф]])+((Таблица18[[#This Row],[15]]-2)*2*$AR$3*Таблица18[[#This Row],[коэф]])), IF(AND(Таблица18[[#This Row],[р/р]]="4/8",V9>2),((2*1.5*$AR$4*1.5)+((Таблица18[[#This Row],[15]]-2)*2*$AR$4*1.5)), IF(AND(Таблица18[[#This Row],[р/р]]="3/4",V9>2),((2*1.5*$AR$5)+((Таблица18[[#This Row],[15]]-2)*2*$AR$5)),(Таблица18[[#This Row],[15]]*1.5*$AR$5)))))) -> 1354.88
A10: Декабрь | B10: 2021 | C10: 61 | D10: 42-21 | E10: 1 | F10: работник11 | G10: 3/24 | J10: 2 | AM10: =SUM(Таблица18[[#This Row],[1]:[30]]) -> 2 | AN10: =SUM(IF(AND(Таблица18[[#This Row],[р/р]]="3/24",H10>2),((2*1.5*$AR$2*Таблица18[[#This Row],[коэф]])+((Таблица18[[#This Row],[1]]-2)*2*$AR$2*Таблица18[[#This Row],[коэф]])), IF(AND(Таблица18[[#This Row],[р/р]]="3/16",H10>2),((2*1.5*$AR$3*Таблица18[[#This Row],[коэф]])+((Таблица18[[#This Row],[1]]-2)*2*$AR$3*Таблица18[[#This Row],[коэф]])), IF(AND(Таблица18[[#This Row],[р/р]]="4/8",H10>2),((2*1.5*$AR$4*1.5)+((Таблица18[[#This Row],[1]]-2)*2*$AR$4*1.5)), IF(AND(Таблица18[[#This Row],[р/р]]="3/4",H10>2),((2*1.5*$AR$5)+((Таблица18[[#This Row],[1]]-2)*2*$AR$5)),(Таблица18[[#This Row],[1]]*1.5*$AR$5)))))+ IF(AND(Таблица18[[#This Row],[р/р]]="3/24",I10>2),((2*1.5*$AR$2*Таблица18[[#This Row],[коэф]])+((Таблица18[[#This Row],[2]]-2)*2*$AR$2*Таблица18[[#This Row],[коэф]])), IF(AND(Таблица18[[#This Row],[р/р]]="3/16",I10>2),((2*1.5*$AR$3*Таблица18[[#This Row],[коэф]])+((Таблица18[[#This Row],[2]]-2)*2*$AR$3*Таблица18[[#This Row],[коэф]])), IF(AND(Таблица18[[#This Row],[р/р]]="4/8",I10>2),((2*1.5*$AR$4*1.5)+((Таблица18[[#This Row],[2]]-2)*2*$AR$4*1.5)), IF(AND(Таблица18[[#This Row],[р/р]]="3/4",I10>2),((2*1.5*$AR$5)+((Таблица18[[#This Row],[2]]-2)*2*$AR$5)),(Таблица18[[#This Row],[2]]*1.5*$AR$5)))))+ IF(AND(Таблица18[[#This Row],[р/р]]="3/24",J10>2),((2*1.5*$AR$2*Таблица18[[#This Row],[коэф]])+((Таблица18[[#This Row],[3]]-2)*2*$AR$2*Таблица18[[#This Row],[коэф]])), IF(AND(Таблица18[[#This Row],[р/р]]="3/16",J10>2),((2*1.5*$AR$3*Таблица18[[#This Row],[коэф]])+((Таблица18[[#This Row],[3]]-2)*2*$AR$3*Таблица18[[#This Row],[коэф]])), IF(AND(Таблица18[[#This Row],[р/р]]="4/8",J10>2),((2*1.5*$AR$4*1.5)+((Таблица18[[#This Row],[3]]-2)*2*$AR$4*1.5)), IF(AND(Таблица18[[#This Row],[р/р]]="3/4",J10>2),((2*1.5*$AR$5)+((Таблица18[[#This Row],[3]]-2)*2*$AR$5)),(Таблица18[[#This Row],[3]]*1.5*$AR$5)))))+ IF(AND(Таблица18[[#This Row],[р/р]]="3/24",K10>2),((2*1.5*$AR$2*Таблица18[[#This Row],[коэф]])+((Таблица18[[#This Row],[4]]-2)*2*$AR$2*Таблица18[[#This Row],[коэф]])), IF(AND(Таблица18[[#This Row],[р/р]]="3/16",K10>2),((2*1.5*$AR$3*Таблица18[[#This Row],[коэф]])+((Таблица18[[#This Row],[4]]-2)*2*$AR$3*Таблица18[[#This Row],[коэф]])), IF(AND(Таблица18[[#This Row],[р/р]]="4/8",K10>2),((2*1.5*$AR$4*1.5)+((Таблица18[[#This Row],[4]]-2)*2*$AR$4*1.5)), IF(AND(Таблица18[[#This Row],[р/р]]="3/4",K10>2),((2*1.5*$AR$5)+((Таблица18[[#This Row],[4]]-2)*2*$AR$5)),(Таблица18[[#This Row],[4]]*1.5*$AR$5)))))+ IF(AND(Таблица18[[#This Row],[р/р]]="3/24",V10>2),((2*1.5*$AR$2*Таблица18[[#This Row],[коэф]])+((Таблица18[[#This Row],[15]]-2)*2*$AR$2*Таблица18[[#This Row],[коэф]])), IF(AND(Таблица18[[#This Row],[р/р]]="3/16",V10>2),((2*1.5*$AR$3*Таблица18[[#This Row],[коэф]])+((Таблица18[[#This Row],[15]]-2)*2*$AR$3*Таблица18[[#This Row],[коэф]])), IF(AND(Таблица18[[#This Row],[р/р]]="4/8",V10>2),((2*1.5*$AR$4*1.5)+((Таблица18[[#This Row],[15]]-2)*2*$AR$4*1.5)), IF(AND(Таблица18[[#This Row],[р/р]]="3/4",V10>2),((2*1.5*$AR$5)+((Таблица18[[#This Row],[15]]-2)*2*$AR$5)),(Таблица18[[#This Row],[15]]*1.5*$AR$5)))))) -> 455.52
A11: Декабрь | B11: 2021 | C11: 61 | D11: 43-21 | E11: 1 | F11: работник6 | G11: 3/16 | I11: 2.8 | AM11: =SUM(Таблица18[[#This Row],[1]:[30]]) -> 2.8 | AN11: =SUM(IF(AND(Таблица18[[#This Row],[р/р]]="3/24",H11>2),((2*1.5*$AR$2*Таблица18[[#This Row],[коэф]])+((Таблица18[[#This Row],[1]]-2)*2*$AR$2*Таблица18[[#This Row],[коэф]])), IF(AND(Таблица18[[#This Row],[р/р]]="3/16",H11>2),((2*1.5*$AR$3*Таблица18[[#This Row],[коэф]])+((Таблица18[[#This Row],[1]]-2)*2*$AR$3*Таблица18[[#This Row],[коэф]])), IF(AND(Таблица18[[#This Row],[р/р]]="4/8",H11>2),((2*1.5*$AR$4*1.5)+((Таблица18[[#This Row],[1]]-2)*2*$AR$4*1.5)), IF(AND(Таблица18[[#This Row],[р/р]]="3/4",H11>2),((2*1.5*$AR$5)+((Таблица18[[#This Row],[1]]-2)*2*$AR$5)),(Таблица18[[#This Row],[1]]*1.5*$AR$5)))))+ IF(AND(Таблица18[[#This Row],[р/р]]="3/24",I11>2),((2*1.5*$AR$2*Таблица18[[#This Row],[коэф]])+((Таблица18[[#This Row],[2]]-2)*2*$AR$2*Таблица18[[#This Row],[коэф]])), IF(AND(Таблица18[[#This Row],[р/р]]="3/16",I11>2),((2*1.5*$AR$3*Таблица18[[#This Row],[коэф]])+((Таблица18[[#This Row],[2]]-2)*2*$AR$3*Таблица18[[#This Row],[коэф]])), IF(AND(Таблица18[[#This Row],[р/р]]="4/8",I11>2),((2*1.5*$AR$4*1.5)+((Таблица18[[#This Row],[2]]-2)*2*$AR$4*1.5)), IF(AND(Таблица18[[#This Row],[р/р]]="3/4",I11>2),((2*1.5*$AR$5)+((Таблица18[[#This Row],[2]]-2)*2*$AR$5)),(Таблица18[[#This Row],[2]]*1.5*$AR$5)))))+ IF(AND(Таблица18[[#This Row],[р/р]]="3/24",J11>2),((2*1.5*$AR$2*Таблица18[[#This Row],[коэф]])+((Таблица18[[#This Row],[3]]-2)*2*$AR$2*Таблица18[[#This Row],[коэф]])), IF(AND(Таблица18[[#This Row],[р/р]]="3/16",J11>2),((2*1.5*$AR$3*Таблица18[[#This Row],[коэф]])+((Таблица18[[#This Row],[3]]-2)*2*$AR$3*Таблица18[[#This Row],[коэф]])), IF(AND(Таблица18[[#This Row],[р/р]]="4/8",J11>2),((2*1.5*$AR$4*1.5)+((Таблица18[[#This Row],[3]]-2)*2*$AR$4*1.5)), IF(AND(Таблица18[[#This Row],[р/р]]="3/4",J11>2),((2*1.5*$AR$5)+((Таблица18[[#This Row],[3]]-2)*2*$AR$5)),(Таблица18[[#This Row],[3]]*1.5*$AR$5)))))+ IF(AND(Таблица18[[#This Row],[р/р]]="3/24",K11>2),((2*1.5*$AR$2*Таблица18[[#This Row],[коэф]])+((Таблица18[[#This Row],[4]]-2)*2*$AR$2*Таблица18[[#This Row],[коэф]])), IF(AND(Таблица18[[#This Row],[р/р]]="3/16",K11>2),((2*1.5*$AR$3*Таблица18[[#This Row],[коэф]])+((Таблица18[[#This Row],[4]]-2)*2*$AR$3*Таблица18[[#This Row],[коэф]])), IF(AND(Таблица18[[#This Row],[р/р]]="4/8",K11>2),((2*1.5*$AR$4*1.5)+((Таблица18[[#This Row],[4]]-2)*2*$AR$4*1.5)), IF(AND(Таблица18[[#This Row],[р/р]]="3/4",K11>2),((2*1.5*$AR$5)+((Таблица18[[#This Row],[4]]-2)*2*$AR$5)),(Таблица18[[#This Row],[4]]*1.5*$AR$5)))))+ IF(AND(Таблица18[[#This Row],[р/р]]="3/24",V11>2),((2*1.5*$AR$2*Таблица18[[#This Row],[коэф]])+((Таблица18[[#This Row],[15]]-2)*2*$AR$2*Таблица18[[#This Row],[коэф]])), IF(AND(Таблица18[[#This Row],[р/р]]="3/16",V11>2),((2*1.5*$AR$3*Таблица18[[#This Row],[коэф]])+((Таблица18[[#This Row],[15]]-2)*2*$AR$3*Таблица18[[#This Row],[коэф]])), IF(AND(Таблица18[[#This Row],[р/р]]="4/8",V11>2),((2*1.5*$AR$4*1.5)+((Таблица18[[#This Row],[15]]-2)*2*$AR$4*1.5)), IF(AND(Таблица18[[#This Row],[р/р]]="3/4",V11>2),((2*1.5*$AR$5)+((Таблица18[[#This Row],[15]]-2)*2*$AR$5)),(Таблица18[[#This Row],[15]]*1.5*$AR$5)))))) -> 779.056
A12: Декабрь | B12: 2021 | C12: 61 | D12: 43-21 | E12: 1 | F12: работник13 | G12: 3/16 | V12: 2.5 | AM12: =SUM(Таблица18[[#This Row],[1]:[30]]) -> 2.5 | AN12: =SUM(IF(AND(Таблица18[[#This Row],[р/р]]="3/24",H12>2),((2*1.5*$AR$2*Таблица18[[#This Row],[коэф]])+((Таблица18[[#This Row],[1]]-2)*2*$AR$2*Таблица18[[#This Row],[коэф]])), IF(AND(Таблица18[[#This Row],[р/р]]="3/16",H12>2),((2*1.5*$AR$3*Таблица18[[#This Row],[коэф]])+((Таблица18[[#This Row],[1]]-2)*2*$AR$3*Таблица18[[#This Row],[коэф]])), IF(AND(Таблица18[[#This Row],[р/р]]="4/8",H12>2),((2*1.5*$AR$4*1.5)+((Таблица18[[#This Row],[1]]-2)*2*$AR$4*1.5)), IF(AND(Таблица18[[#This Row],[р/р]]="3/4",H12>2),((2*1.5*$AR$5)+((Таблица18[[#This Row],[1]]-2)*2*$AR$5)),(Таблица18[[#This Row],[1]]*1.5*$AR$5)))))+ IF(AND(Таблица18[[#This Row],[р/р]]="3/24",I12>2),((2*1.5*$AR$2*Таблица18[[#This Row],[коэф]])+((Таблица18[[#This Row],[2]]-2)*2*$AR$2*Таблица18[[#This Row],[коэф]])), IF(AND(Таблица18[[#This Row],[р/р]]="3/16",I12>2),((2*1.5*$AR$3*Таблица18[[#This Row],[коэф]])+((Таблица18[[#This Row],[2]]-2)*2*$AR$3*Таблица18[[#This Row],[коэф]])), IF(AND(Таблица18[[#This Row],[р/р]]="4/8",I12>2),((2*1.5*$AR$4*1.5)+((Таблица18[[#This Row],[2]]-2)*2*$AR$4*1.5)), IF(AND(Таблица18[[#This Row],[р/р]]="3/4",I12>2),((2*1.5*$AR$5)+((Таблица18[[#This Row],[2]]-2)*2*$AR$5)),(Таблица18[[#This Row],[2]]*1.5*$AR$5)))))+ IF(AND(Таблица18[[#This Row],[р/р]]="3/24",J12>2),((2*1.5*$AR$2*Таблица18[[#This Row],[коэф]])+((Таблица18[[#This Row],[3]]-2)*2*$AR$2*Таблица18[[#This Row],[коэф]])), IF(AND(Таблица18[[#This Row],[р/р]]="3/16",J12>2),((2*1.5*$AR$3*Таблица18[[#This Row],[коэф]])+((Таблица18[[#This Row],[3]]-2)*2*$AR$3*Таблица18[[#This Row],[коэф]])), IF(AND(Таблица18[[#This Row],[р/р]]="4/8",J12>2),((2*1.5*$AR$4*1.5)+((Таблица18[[#This Row],[3]]-2)*2*$AR$4*1.5)), IF(AND(Таблица18[[#This Row],[р/р]]="3/4",J12>2),((2*1.5*$AR$5)+((Таблица18[[#This Row],[3]]-2)*2*$AR$5)),(Таблица18[[#This Row],[3]]*1.5*$AR$5)))))+ IF(AND(Таблица18[[#This Row],[р/р]]="3/24",K12>2),((2*1.5*$AR$2*Таблица18[[#This Row],[коэф]])+((Таблица18[[#This Row],[4]]-2)*2*$AR$2*Таблица18[[#This Row],[коэф]])), IF(AND(Таблица18[[#This Row],[р/р]]="3/16",K12>2),((2*1.5*$AR$3*Таблица18[[#This Row],[коэф]])+((Таблица18[[#This Row],[4]]-2)*2*$AR$3*Таблица18[[#This Row],[коэф]])), IF(AND(Таблица18[[#This Row],[р/р]]="4/8",K12>2),((2*1.5*$AR$4*1.5)+((Таблица18[[#This Row],[4]]-2)*2*$AR$4*1.5)), IF(AND(Таблица18[[#This Row],[р/р]]="3/4",K12>2),((2*1.5*$AR$5)+((Таблица18[[#This Row],[4]]-2)*2*$AR$5)),(Таблица18[[#This Row],[4]]*1.5*$AR$5)))))+ IF(AND(Таблица18[[#This Row],[р/р]]="3/24",V12>2),((2*1.5*$AR$2*Таблица18[[#This Row],[коэф]])+((Таблица18[[#This Row],[15]]-2)*2*$AR$2*Таблица18[[#This Row],[коэф]])), IF(AND(Таблица18[[#This Row],[р/р]]="3/16",V12>2),((2*1.5*$AR$3*Таблица18[[#This Row],[коэф]])+((Таблица18[[#This Row],[15]]-2)*2*$AR$3*Таблица18[[#This Row],[коэф]])), IF(AND(Таблица18[[#This Row],[р/р]]="4/8",V12>2),((2*1.5*$AR$4*1.5)+((Таблица18[[#This Row],[15]]-2)*2*$AR$4*1.5)), IF(AND(Таблица18[[#This Row],[р/р]]="3/4",V12>2),((2*1.5*$AR$5)+((Таблица18[[#This Row],[15]]-2)*2*$AR$5)),(Таблица18[[#This Row],[15]]*1.5*$AR$5)))))) -> 677.44
A13: Декабрь | B13: 2021 | C13: 61 | D13: 45-21 | E13: 1 | F13: работник14 | G13: 3/4 | K13: 4 | AM13: =SUM(Таблица18[[#This Row],[1]:[30]]) -> 4 | AN13: =SUM(IF(AND(Таблица18[[#This Row],[р/р]]="3/24",H13>2),((2*1.5*$AR$2*Таблица18[[#This Row],[коэф]])+((Таблица18[[#This Row],[1]]-2)*2*$AR$2*Таблица18[[#This Row],[коэф]])), IF(AND(Таблица18[[#This Row],[р/р]]="3/16",H13>2),((2*1.5*$AR$3*Таблица18[[#This Row],[коэф]])+((Таблица18[[#This Row],[1]]-2)*2*$AR$3*Таблица18[[#This Row],[коэф]])), IF(AND(Таблица18[[#This Row],[р/р]]="4/8",H13>2),((2*1.5*$AR$4*1.5)+((Таблица18[[#This Row],[1]]-2)*2*$AR$4*1.5)), IF(AND(Таблица18[[#This Row],[р/р]]="3/4",H13>2),((2*1.5*$AR$5)+((Таблица18[[#This Row],[1]]-2)*2*$AR$5)),(Таблица18[[#This Row],[1]]*1.5*$AR$5)))))+ IF(AND(Таблица18[[#This Row],[р/р]]="3/24",I13>2),((2*1.5*$AR$2*Таблица18[[#This Row],[коэф]])+((Таблица18[[#This Row],[2]]-2)*2*$AR$2*Таблица18[[#This Row],[коэф]])), IF(AND(Таблица18[[#This Row],[р/р]]="3/16",I13>2),((2*1.5*$AR$3*Таблица18[[#This Row],[коэф]])+((Таблица18[[#This Row],[2]]-2)*2*$AR$3*Таблица18[[#This Row],[коэф]])), IF(AND(Таблица18[[#This Row],[р/р]]="4/8",I13>2),((2*1.5*$AR$4*1.5)+((Таблица18[[#This Row],[2]]-2)*2*$AR$4*1.5)), IF(AND(Таблица18[[#This Row],[р/р]]="3/4",I13>2),((2*1.5*$AR$5)+((Таблица18[[#This Row],[2]]-2)*2*$AR$5)),(Таблица18[[#This Row],[2]]*1.5*$AR$5)))))+ IF(AND(Таблица18[[#This Row],[р/р]]="3/24",J13>2),((2*1.5*$AR$2*Таблица18[[#This Row],[коэф]])+((Таблица18[[#This Row],[3]]-2)*2*$AR$2*Таблица18[[#This Row],[коэф]])), IF(AND(Таблица18[[#This Row],[р/р]]="3/16",J13>2),((2*1.5*$AR$3*Таблица18[[#This Row],[коэф]])+((Таблица18[[#This Row],[3]]-2)*2*$AR$3*Таблица18[[#This Row],[коэф]])), IF(AND(Таблица18[[#This Row],[р/р]]="4/8",J13>2),((2*1.5*$AR$4*1.5)+((Таблица18[[#This Row],[3]]-2)*2*$AR$4*1.5)), IF(AND(Таблица18[[#This Row],[р/р]]="3/4",J13>2),((2*1.5*$AR$5)+((Таблица18[[#This Row],[3]]-2)*2*$AR$5)),(Таблица18[[#This Row],[3]]*1.5*$AR$5)))))+ IF(AND(Таблица18[[#This Row],[р/р]]="3/24",K13>2),((2*1.5*$AR$2*Таблица18[[#This Row],[коэф]])+((Таблица18[[#This Row],[4]]-2)*2*$AR$2*Таблица18[[#This Row],[коэф]])), IF(AND(Таблица18[[#This Row],[р/р]]="3/16",K13>2),((2*1.5*$AR$3*Таблица18[[#This Row],[коэф]])+((Таблица18[[#This Row],[4]]-2)*2*$AR$3*Таблица18[[#This Row],[коэф]])), IF(AND(Таблица18[[#This Row],[р/р]]="4/8",K13>2),((2*1.5*$AR$4*1.5)+((Таблица18[[#This Row],[4]]-2)*2*$AR$4*1.5)), IF(AND(Таблица18[[#This Row],[р/р]]="3/4",K13>2),((2*1.5*$AR$5)+((Таблица18[[#This Row],[4]]-2)*2*$AR$5)),(Таблица18[[#This Row],[4]]*1.5*$AR$5)))))+ IF(AND(Таблица18[[#This Row],[р/р]]="3/24",V13>2),((2*1.5*$AR$2*Таблица18[[#This Row],[коэф]])+((Таблица18[[#This Row],[15]]-2)*2*$AR$2*Таблица18[[#This Row],[коэф]])), IF(AND(Таблица18[[#This Row],[р/р]]="3/16",V13>2),((2*1.5*$AR$3*Таблица18[[#This Row],[коэф]])+((Таблица18[[#This Row],[15]]-2)*2*$AR$3*Таблица18[[#This Row],[коэф]])), IF(AND(Таблица18[[#This Row],[р/р]]="4/8",V13>2),((2*1.5*$AR$4*1.5)+((Таблица18[[#This Row],[15]]-2)*2*$AR$4*1.5)), IF(AND(Таблица18[[#This Row],[р/р]]="3/4",V13>2),((2*1.5*$AR$5)+((Таблица18[[#This Row],[15]]-2)*2*$AR$5)),(Таблица18[[#This Row],[15]]*1.5*$AR$5)))))) -> 1062.88
A14: Декабрь | B14: 2021 | C14: 61 | D14: 43-22 | E14: 1 | F14: работник6 | G14: 3/16 | J14: 2 | AM14: =SUM(Таблица18[[#This Row],[1]:[30]]) -> 2 | AN14: =SUM(IF(AND(Таблица18[[#This Row],[р/р]]="3/24",H14>2),((2*1.5*$AR$2*Таблица18[[#This Row],[коэф]])+((Таблица18[[#This Row],[1]]-2)*2*$AR$2*Таблица18[[#This Row],[коэф]])), IF(AND(Таблица18[[#This Row],[р/р]]="3/16",H14>2),((2*1.5*$AR$3*Таблица18[[#This Row],[коэф]])+((Таблица18[[#This Row],[1]]-2)*2*$AR$3*Таблица18[[#This Row],[коэф]])), IF(AND(Таблица18[[#This Row],[р/р]]="4/8",H14>2),((2*1.5*$AR$4*1.5)+((Таблица18[[#This Row],[1]]-2)*2*$AR$4*1.5)), IF(AND(Таблица18[[#This Row],[р/р]]="3/4",H14>2),((2*1.5*$AR$5)+((Таблица18[[#This Row],[1]]-2)*2*$AR$5)),(Таблица18[[#This Row],[1]]*1.5*$AR$5)))))+ IF(AND(Таблица18[[#This Row],[р/р]]="3/24",I14>2),((2*1.5*$AR$2*Таблица18[[#This Row],[коэф]])+((Таблица18[[#This Row],[2]]-2)*2*$AR$2*Таблица18[[#This Row],[коэф]])), IF(AND(Таблица18[[#This Row],[р/р]]="3/16",I14>2),((2*1.5*$AR$3*Таблица18[[#This Row],[коэф]])+((Таблица18[[#This Row],[2]]-2)*2*$AR$3*Таблица18[[#This Row],[коэф]])), IF(AND(Таблица18[[#This Row],[р/р]]="4/8",I14>2),((2*1.5*$AR$4*1.5)+((Таблица18[[#This Row],[2]]-2)*2*$AR$4*1.5)), IF(AND(Таблица18[[#This Row],[р/р]]="3/4",I14>2),((2*1.5*$AR$5)+((Таблица18[[#This Row],[2]]-2)*2*$AR$5)),(Таблица18[[#This Row],[2]]*1.5*$AR$5)))))+ IF(AND(Таблица18[[#This Row],[р/р]]="3/24",J14>2),((2*1.5*$AR$2*Таблица18[[#This Row],[коэф]])+((Таблица18[[#This Row],[3]]-2)*2*$AR$2*Таблица18[[#This Row],[коэф]])), IF(AND(Таблица18[[#This Row],[р/р]]="3/16",J14>2),((2*1.5*$AR$3*Таблица18[[#This Row],[коэф]])+((Таблица18[[#This Row],[3]]-2)*2*$AR$3*Таблица18[[#This Row],[коэф]])), IF(AND(Таблица18[[#This Row],[р/р]]="4/8",J14>2),((2*1.5*$AR$4*1.5)+((Таблица18[[#This Row],[3]]-2)*2*$AR$4*1.5)), IF(AND(Таблица18[[#This Row],[р/р]]="3/4",J14>2),((2*1.5*$AR$5)+((Таблица18[[#This Row],[3]]-2)*2*$AR$5)),(Таблица18[[#This Row],[3]]*1.5*$AR$5)))))+ IF(AND(Таблица18[[#This Row],[р/р]]="3/24",K14>2),((2*1.5*$AR$2*Таблица18[[#This Row],[коэф]])+((Таблица18[[#This Row],[4]]-2)*2*$AR$2*Таблица18[[#This Row],[коэф]])), IF(AND(Таблица18[[#This Row],[р/р]]="3/16",K14>2),((2*1.5*$AR$3*Таблица18[[#This Row],[коэф]])+((Таблица18[[#This Row],[4]]-2)*2*$AR$3*Таблица18[[#This Row],[коэф]])), IF(AND(Таблица18[[#This Row],[р/р]]="4/8",K14>2),((2*1.5*$AR$4*1.5)+((Таблица18[[#This Row],[4]]-2)*2*$AR$4*1.5)), IF(AND(Таблица18[[#This Row],[р/р]]="3/4",K14>2),((2*1.5*$AR$5)+((Таблица18[[#This Row],[4]]-2)*2*$AR$5)),(Таблица18[[#This Row],[4]]*1.5*$AR$5)))))+ IF(AND(Таблица18[[#This Row],[р/р]]="3/24",V14>2),((2*1.5*$AR$2*Таблица18[[#This Row],[коэф]])+((Таблица18[[#This Row],[15]]-2)*2*$AR$2*Таблица18[[#This Row],[коэф]])), IF(AND(Таблица18[[#This Row],[р/р]]="3/16",V14>2),((2*1.5*$AR$3*Таблица18[[#This Row],[коэф]])+((Таблица18[[#This Row],[15]]-2)*2*$AR$3*Таблица18[[#This Row],[коэф]])), IF(AND(Таблица18[[#This Row],[р/р]]="4/8",V14>2),((2*1.5*$AR$4*1.5)+((Таблица18[[#This Row],[15]]-2)*2*$AR$4*1.5)), IF(AND(Таблица18[[#This Row],[р/р]]="3/4",V14>2),((2*1.5*$AR$5)+((Таблица18[[#This Row],[15]]-2)*2*$AR$5)),(Таблица18[[#This Row],[15]]*1.5*$AR$5)))))) -> 455.52
A15: Декабрь | B15: 2021 | C15: 61 | D15: 45-22 | E15: 1 | F15: работник6 | G15: 3/4 | H15: 3 | AM15: =SUM(Таблица18[[#This Row],[1]:[30]]) -> 3 | AN15: =SUM(IF(AND(Таблица18[[#This Row],[р/р]]="3/24",H15>2),((2*1.5*$AR$2*Таблица18[[#This Row],[коэф]])+((Таблица18[[#This Row],[1]]-2)*2*$AR$2*Таблица18[[#This Row],[коэф]])), IF(AND(Таблица18[[#This Row],[р/р]]="3/16",H15>2),((2*1.5*$AR$3*Таблица18[[#This Row],[коэф]])+((Таблица18[[#This Row],[1]]-2)*2*$AR$3*Таблица18[[#This Row],[коэф]])), IF(AND(Таблица18[[#This Row],[р/р]]="4/8",H15>2),((2*1.5*$AR$4*1.5)+((Таблица18[[#This Row],[1]]-2)*2*$AR$4*1.5)), IF(AND(Таблица18[[#This Row],[р/р]]="3/4",H15>2),((2*1.5*$AR$5)+((Таблица18[[#This Row],[1]]-2)*2*$AR$5)),(Таблица18[[#This Row],[1]]*1.5*$AR$5)))))+ IF(AND(Таблица18[[#This Row],[р/р]]="3/24",I15>2),((2*1.5*$AR$2*Таблица18[[#This Row],[коэф]])+((Таблица18[[#This Row],[2]]-2)*2*$AR$2*Таблица18[[#This Row],[коэф]])), IF(AND(Таблица18[[#This Row],[р/р]]="3/16",I15>2),((2*1.5*$AR$3*Таблица18[[#This Row],[коэф]])+((Таблица18[[#This Row],[2]]-2)*2*$AR$3*Таблица18[[#This Row],[коэф]])), IF(AND(Таблица18[[#This Row],[р/р]]="4/8",I15>2),((2*1.5*$AR$4*1.5)+((Таблица18[[#This Row],[2]]-2)*2*$AR$4*1.5)), IF(AND(Таблица18[[#This Row],[р/р]]="3/4",I15>2),((2*1.5*$AR$5)+((Таблица18[[#This Row],[2]]-2)*2*$AR$5)),(Таблица18[[#This Row],[2]]*1.5*$AR$5)))))+ IF(AND(Таблица18[[#This Row],[р/р]]="3/24",J15>2),((2*1.5*$AR$2*Таблица18[[#This Row],[коэф]])+((Таблица18[[#This Row],[3]]-2)*2*$AR$2*Таблица18[[#This Row],[коэф]])), IF(AND(Таблица18[[#This Row],[р/р]]="3/16",J15>2),((2*1.5*$AR$3*Таблица18[[#This Row],[коэф]])+((Таблица18[[#This Row],[3]]-2)*2*$AR$3*Таблица18[[#This Row],[коэф]])), IF(AND(Таблица18[[#This Row],[р/р]]="4/8",J15>2),((2*1.5*$AR$4*1.5)+((Таблица18[[#This Row],[3]]-2)*2*$AR$4*1.5)), IF(AND(Таблица18[[#This Row],[р/р]]="3/4",J15>2),((2*1.5*$AR$5)+((Таблица18[[#This Row],[3]]-2)*2*$AR$5)),(Таблица18[[#This Row],[3]]*1.5*$AR$5)))))+ IF(AND(Таблица18[[#This Row],[р/р]]="3/24",K15>2),((2*1.5*$AR$2*Таблица18[[#This Row],[коэф]])+((Таблица18[[#This Row],[4]]-2)*2*$AR$2*Таблица18[[#This Row],[коэф]])), IF(AND(Таблица18[[#This Row],[р/р]]="3/16",K15>2),((2*1.5*$AR$3*Таблица18[[#This Row],[коэф]])+((Таблица18[[#This Row],[4]]-2)*2*$AR$3*Таблица18[[#This Row],[коэф]])), IF(AND(Таблица18[[#This Row],[р/р]]="4/8",K15>2),((2*1.5*$AR$4*1.5)+((Таблица18[[#This Row],[4]]-2)*2*$AR$4*1.5)), IF(AND(Таблица18[[#This Row],[р/р]]="3/4",K15>2),((2*1.5*$AR$5)+((Таблица18[[#This Row],[4]]-2)*2*$AR$5)),(Таблица18[[#This Row],[4]]*1.5*$AR$5)))))+ IF(AND(Таблица18[[#This Row],[р/р]]="3/24",V15>2),((2*1.5*$AR$2*Таблица18[[#This Row],[коэф]])+((Таблица18[[#This Row],[15]]-2)*2*$AR$2*Таблица18[[#This Row],[коэф]])), IF(AND(Таблица18[[#This Row],[р/р]]="3/16",V15>2),((2*1.5*$AR$3*Таблица18[[#This Row],[коэф]])+((Таблица18[[#This Row],[15]]-2)*2*$AR$3*Таблица18[[#This Row],[коэф]])), IF(AND(Таблица18[[#This Row],[р/р]]="4/8",V15>2),((2*1.5*$AR$4*1.5)+((Таблица18[[#This Row],[15]]-2)*2*$AR$4*1.5)), IF(AND(Таблица18[[#This Row],[р/р]]="3/4",V15>2),((2*1.5*$AR$5)+((Таблица18[[#This Row],[15]]-2)*2*$AR$5)),(Таблица18[[#This Row],[15]]*1.5*$AR$5)))))) -> 759.2
A16: Декабрь | B16: 2021 | C16: 61 | D16: 45-22 | E16: 1 | F16: работник6 | G16: 3/24 | V16: 3 | AM16: =SUM(Таблица18[[#This Row],[1]:[30]]) -> 3 | AN16: =SUM(IF(AND(Таблица18[[#This Row],[р/р]]="3/24",H16>2),((2*1.5*$AR$2*Таблица18[[#This Row],[коэф]])+((Таблица18[[#This Row],[1]]-2)*2*$AR$2*Таблица18[[#This Row],[коэф]])), IF(AND(Таблица18[[#This Row],[р/р]]="3/16",H16>2),((2*1.5*$AR$3*Таблица18[[#This Row],[коэф]])+((Таблица18[[#This Row],[1]]-2)*2*$AR$3*Таблица18[[#This Row],[коэф]])), IF(AND(Таблица18[[#This Row],[р/р]]="4/8",H16>2),((2*1.5*$AR$4*1.5)+((Таблица18[[#This Row],[1]]-2)*2*$AR$4*1.5)), IF(AND(Таблица18[[#This Row],[р/р]]="3/4",H16>2),((2*1.5*$AR$5)+((Таблица18[[#This Row],[1]]-2)*2*$AR$5)),(Таблица18[[#This Row],[1]]*1.5*$AR$5)))))+ IF(AND(Таблица18[[#This Row],[р/р]]="3/24",I16>2),((2*1.5*$AR$2*Таблица18[[#This Row],[коэф]])+((Таблица18[[#This Row],[2]]-2)*2*$AR$2*Таблица18[[#This Row],[коэф]])), IF(AND(Таблица18[[#This Row],[р/р]]="3/16",I16>2),((2*1.5*$AR$3*Таблица18[[#This Row],[коэф]])+((Таблица18[[#This Row],[2]]-2)*2*$AR$3*Таблица18[[#This Row],[коэф]])), IF(AND(Таблица18[[#This Row],[р/р]]="4/8",I16>2),((2*1.5*$AR$4*1.5)+((Таблица18[[#This Row],[2]]-2)*2*$AR$4*1.5)), IF(AND(Таблица18[[#This Row],[р/р]]="3/4",I16>2),((2*1.5*$AR$5)+((Таблица18[[#This Row],[2]]-2)*2*$AR$5)),(Таблица18[[#This Row],[2]]*1.5*$AR$5)))))+ IF(AND(Таблица18[[#This Row],[р/р]]="3/24",J16>2),((2*1.5*$AR$2*Таблица18[[#This Row],[коэф]])+((Таблица18[[#This Row],[3]]-2)*2*$AR$2*Таблица18[[#This Row],[коэф]])), IF(AND(Таблица18[[#This Row],[р/р]]="3/16",J16>2),((2*1.5*$AR$3*Таблица18[[#This Row],[коэф]])+((Таблица18[[#This Row],[3]]-2)*2*$AR$3*Таблица18[[#This Row],[коэф]])), IF(AND(Таблица18[[#This Row],[р/р]]="4/8",J16>2),((2*1.5*$AR$4*1.5)+((Таблица18[[#This Row],[3]]-2)*2*$AR$4*1.5)), IF(AND(Таблица18[[#This Row],[р/р]]="3/4",J16>2),((2*1.5*$AR$5)+((Таблица18[[#This Row],[3]]-2)*2*$AR$5)),(Таблица18[[#This Row],[3]]*1.5*$AR$5)))))+ IF(AND(Таблица18[[#This Row],[р/р]]="3/24",K16>2),((2*1.5*$AR$2*Таблица18[[#This Row],[коэф]])+((Таблица18[[#This Row],[4]]-2)*2*$AR$2*Таблица18[[#This Row],[коэф]])), IF(AND(Таблица18[[#This Row],[р/р]]="3/16",K16>2),((2*1.5*$AR$3*Таблица18[[#This Row],[коэф]])+((Таблица18[[#This Row],[4]]-2)*2*$AR$3*Таблица18[[#This Row],[коэф]])), IF(AND(Таблица18[[#This Row],[р/р]]="4/8",K16>2),((2*1.5*$AR$4*1.5)+((Таблица18[[#This Row],[4]]-2)*2*$AR$4*1.5)), IF(AND(Таблица18[[#This Row],[р/р]]="3/4",K16>2),((2*1.5*$AR$5)+((Таблица18[[#This Row],[4]]-2)*2*$AR$5)),(Таблица18[[#This Row],[4]]*1.5*$AR$5)))))+ IF(AND(Таблица18[[#This Row],[р/р]]="3/24",V16>2),((2*1.5*$AR$2*Таблица18[[#This Row],[коэф]])+((Таблица18[[#This Row],[15]]-2)*2*$AR$2*Таблица18[[#This Row],[коэф]])), IF(AND(Таблица18[[#This Row],[р/р]]="3/16",V16>2),((2*1.5*$AR$3*Таблица18[[#This Row],[коэф]])+((Таблица18[[#This Row],[15]]-2)*2*$AR$3*Таблица18[[#This Row],[коэф]])), IF(AND(Таблица18[[#This Row],[р/р]]="4/8",V16>2),((2*1.5*$AR$4*1.5)+((Таблица18[[#This Row],[15]]-2)*2*$AR$4*1.5)), IF(AND(Таблица18[[#This Row],[р/р]]="3/4",V16>2),((2*1.5*$AR$5)+((Таблица18[[#This Row],[15]]-2)*2*$AR$5)),(Таблица18[[#This Row],[15]]*1.5*$AR$5)))))) -> 905.2

Sheet база (hidden)
A1: партия | B1: Ф. И. О. | C1: р/р | D1: разряд | E1: Таб № | G1: Разряд работы | H1: Стоимость | I1: 4% | J1: 8% | K1: 12% | L1: 16% | M1: 24%
A2: 41-21 | B2: работник1 | C2: 3/16 | D2: 3 | E2: 15118 | G2: 1 | H2: 5 | I2: 25.49 | J2: 30.31 | K2: 35.14 | L2: 39.97 | M2: 49.62
A3: 42-21 | B3: работник2 | C3: 2/4 | D3: 3 | E3: 15791 | G3: 2 | H3: 10 | I3: 36.78 | J3: 42.04 | K3: 47.3 | L3: 52.56 | M3: 63.08
A4: 43-21 | B4: работник3 | C4: 3/4 | D4: 3 | E4: 15117 | G4: 3 | H4: 20 | I4: 51.84 | J4: 57.68 | K4: 63.52 | L4: 69.36 | M4: 81.04
A5: 44-21 | B5: работник4 | C5: 4/8 | D5: 3 | E5: 15043 | G5: 4 | H5: 30 | I5: 66.9 | J5: 73.32 | K5: 79.74 | L5: 86.16 | M5: 99
A6: 45-21 | B6: работник5 | C6: 3/24 | D6: 3 | E6: 15001 | G6: 5 | H6: 40 | I6: 88.24 | J6: 95.48 | K6: 2.72 | L6: 9.96 | M6: 24.44
A7: 1-22 | B7: работник6 | C7: 4/24 | D7: 3 | E7: 15894 | G7: 6 | H7: 50 | I7: 14.58 | J7: 22.84 | K7: 31.09 | L7: 39.34 | M7: 55.85
A8: 4-21 | B8: работник7 | C8: 4/16 | D8: 3 | E8: 15590
A9: 9-21 | B9: работник8 | D9: 3 | E9: 15340
A10: 10-21 | B10: работник9 | D10: 3 | E10: 15608
A11: п/ф-21 | B11: работник10 | D11: 4 | E11: 13676
B12: работник11 | D12: 3 | E12: 15575
B13: работник12 | D13: 3 | E13: 14883
B14: работник13 | D14: 3 | E14: 15041
B15: работник14 | D15: 3 | E15: 15556
B16: работник15 | D16: 3 | E16: 15589
B17: работник16 | D17: 3 | E17: 15098
B18: работник17 | D18: 3 | E18: 15237
B19: работник18 | D19: 3 | E19: 14693
B20: работник19 | D20: 3 | E20: 14988
B21: работник20 | D21: 4 | E21: 15889
B22: работник21 | D22: 3 | E22: 16889
B23: работник22 | D23: 3 | E23: 13897
B24: Джеймс Бонд | D24: 2 | E24: 007

Sheet Лист1
A1: производств уч. № 1
J2: ЗП | L2: декабрь | T2: 2021
K3: СВЕРХУРОЧНАЯ РАБОТА
B4: ФИО | C4: Табельный номер | D4: разряд работника | E4: 0.04 | I4: 0.08 | M4: 0.12 | Q4: 0.16 | U4: 0.24 | Y4: итого часы | Z4: итого сумма, руб | AA4: подпись работник
E5: тариф | F5: коэффициент | G5: часы | H5: сумма | I5: тариф | J5: коэффициент | K5: часы | L5: сумма | M5: тариф | N5: коэффициент | O5: часы | P5: сумма | Q5: тариф | R5: коэффициент | S5: часы | T5: сумма | U5: тариф | V5: коэффициент | W5: часы | X5: сумма
A6: 1 | C6: =INDEX(база!E2:E24, MATCH(B7,база!B2:B24,0)) -> 15118 | D6: =INDEX(база!D2:D24, MATCH(B7,база!B2:B24,0)) -> 3 | E6: =IF(D6<=3,база!I4,база!I5) -> 51.84 | F6: 1 | G6: =SUMIFS(Таблица18[сумма],Таблица18[коэф],"1",Таблица18[р/р],"2/4",Таблица18[Ф. И. О.],B7) -> 0 | I6: =IF(D6<=3,база!J4,база!J5) -> 57.68 | J6: 1 | K6: =SUMIFS(Таблица18[сумма],Таблица18[коэф],"1",Таблица18[р/р],"2/8",Таблица18[Ф. И. О.],B7) -> 0 | N6: 1 | O6: =SUMIFS(#REF!,#REF!,"1",#REF!,"3/12",#REF!,B7) ->  | P6: =ROUND(M6*N6*O6,2) ->  | Q6: =IF(D6<=3,база!L4,база!L5) -> 69.36 | R6: 1 | S6: =SUMIFS(Таблица18[сумма],Таблица18[коэф],"1",Таблица18[р/р],"3/16",Таблица18[Ф. И. О.],B7) -> 0 | T6: =SUMIFS(Таблица18[Столбец1],Таблица18[р/р],"3/16",Таблица18[коэф],"1",Таблица18[Ф. И. О.],Лист1!B7) -> 0 | U6: =IF(D6<=3,база!M4,база!M5) -> 81.04 | V6: 1 | W6: =SUMIFS(Таблица18[сумма],Таблица18[коэф],"1",Таблица18[р/р],"3/24",Таблица18[Ф. И. О.],B7) -> 0 | Y6: =SUM(W6:W9,S6:S9,K6:K9,G6:G9) -> 9 | Z6: =SUM(H6:H9,L6:L9,T6:T9,X6:X9) -> 4419.65
B7: работник1 | E7: =IF(D6<=3,база!I4,база!I5) -> 51.84 | F7: 1 | G7: =SUMIFS(Таблица18[сумма],Таблица18[коэф],"1",Таблица18[р/р],"3/4",Таблица18[Ф. И. О.],B7) -> 0 | H7: =SUMIFS(Таблица18[Столбец1],Таблица18[р/р],"3/4",Таблица18[коэф],"1",Таблица18[Ф. И. О.],Лист1!B7) -> 0 | I7: =IF(D6<=3,база!J4,база!J5) -> 57.68 | J7: 1 | K7: =SUMIFS(Таблица18[сумма],Таблица18[коэф],"1",Таблица18[р/р],"3/8",Таблица18[Ф. И. О.],B7) -> 0 | N7: 1 | O7: =SUMIFS(#REF!,#REF!,"1",#REF!,"4/12",#REF!,B7) ->  | P7: =ROUND(M7*O7,2) ->  | Q7: =база!L5 -> 86.16 | R7: 1 | S7: =SUMIFS(Таблица18[сумма],Таблица18[р/р],"4/16",Таблица18[коэф],"1",Таблица18[Ф. И. О.],B7) -> 0 | U7: =база!M5 -> 99 | V7: 1 | W7: =SUMIFS(Таблица18[сумма],Таблица18[коэф],"1",Таблица18[р/р],"4/24",Таблица18[Ф. И. О.],B7) -> 0 | AC7: =IF(SUMIFS(Таблица18[Столбец1],Таблица18[Ф. И. О.],B7)=Z6,,B7&" СУММА не верна") -> работник1 СУММА не верна
N8: 1.1 | O8: =SUMIFS(#REF!,#REF!,"1.1",#REF!,"3/12",#REF!,B7) ->  | P8: =ROUND(M8*N8*O8,2) ->  | Q8: =база!L4 -> 69.36 | R8: 1.1 | S8: =SUMIFS(Таблица18[сумма],Таблица18[р/р],"3/16",Таблица18[коэф],"1.1",Таблица18[Ф. И. О.],B7) -> 0 | T8: =SUMIFS(Таблица18[Столбец1],Таблица18[р/р],"3/16",Таблица18[коэф],"1.1",Таблица18[Ф. И. О.],Лист1!B7) -> 0 | U8: =база!M4 -> 81.04 | V8: 1.1 | W8: =SUMIFS(Таблица18[сумма],Таблица18[коэф],"1.1",Таблица18[р/р],"3/24",Таблица18[Ф. И. О.],B7) -> 0 | X8: =SUMIFS(Таблица18[Столбец1],Таблица18[р/р],"3/24",Таблица18[коэф],"1.1",Таблица18[Ф. И. О.],Лист1!B7) -> 0 | AC8: =IF(SUMIFS(Таблица18[сумма],Таблица18[Ф. И. О.],B7)=Y6,,B7&" часы не верны") -> работник1 часы не верны
F9: 1.5 | G9: =SUMIFS(Таблица18[сумма],Таблица18[коэф],"1.5",Таблица18[р/р],"2/4",Таблица18[Ф. И. О.],B7) -> 0 | I9: =база!J5 -> 73.32 | J9: 1.5 | K9: 9 | L9: 4419.65 | N9: 1.5 | O9: =SUMIFS(#REF!,#REF!,"1.5",#REF!,"3/12",#REF!,B7) ->  | Q9: =база!L4 -> 69.36 | R9: 1.5 | S9: =SUMIFS(Таблица18[сумма],Таблица18[р/р],"3/16",Таблица18[коэф],"1.5",Таблица18[Ф. И. О.],B7) -> 0 | U9: =база!M4 -> 81.04 | V9: 1.5 | W9: =SUMIFS(Таблица18[сумма],Таблица18[коэф],"1.5",Таблица18[р/р],"3/24",Таблица18[Ф. И. О.],B7) -> 0
A10: 2 | C10: =INDEX(база!E2:E28, MATCH(B11,база!B2:B28,0)) -> 15117 | D10: =INDEX(база!D2:D28, MATCH(B11,база!B2:B28,0)) -> 3 | E10: =IF(D10<=3,база!I8,база!I9) -> 0 | F10: 1 | G10: =SUMIFS(Таблица18[сумма],Таблица18[коэф],"1",Таблица18[р/р],"2/4",Таблица18[Ф. И. О.],B11) -> 0 | I10: =IF(D10<=3,база!J8,база!J9) -> 0 | J10: 1 | K10: =SUMIFS(Таблица18[сумма],Таблица18[коэф],"1",Таблица18[р/р],"2/8",Таблица18[Ф. И. О.],B11) -> 0 | N10: 1 | O10: =SUMIFS(#REF!,#REF!,"1",#REF!,"3/12",#REF!,B11) ->  | Q10: =IF(D10<=3,база!L8,база!L9) -> 0 | R10: 1 | S10: =SUMIFS(Таблица18[сумма],Таблица18[коэф],"1",Таблица18[р/р],"3/16",Таблица18[Ф. И. О.],B11) -> 0 | T10: =SUMIFS(Таблица18[Столбец1],Таблица18[р/р],"3/16",Таблица18[коэф],"1",Таблица18[Ф. И. О.],Лист1!B11) -> 0 | U10: =IF(D10<=3,база!M8,база!M9) -> 0 | V10: 1 | W10: =SUMIFS(Таблица18[сумма],Таблица18[коэф],"1",Таблица18[р/р],"3/24",Таблица18[Ф. И. О.],B11) -> 1 | Y10: =SUM(W10:W13,S10:S13,K10:K13,G10:G13) -> 1 | Z10: =SUM(H10:H13,L10:L13,T10:T13,X10:X13) -> 0
B11: работник3 | E11: =IF(D10<=3,база!I8,база!I9) -> 0 | F11: 1 | G11: =SUMIFS(Таблица18[сумма],Таблица18[коэф],"1",Таблица18[р/р],"3/4",Таблица18[Ф. И. О.],B11) -> 0 | H11: =SUMIFS(Таблица18[Столбец1],Таблица18[р/р],"3/4",Таблица18[коэф],"1",Таблица18[Ф. И. О.],Лист1!B11) -> 0 | I11: =IF(D10<=3,база!J8,база!J9) -> 0 | J11: 1 | K11: =SUMIFS(Таблица18[сумма],Таблица18[коэф],"1",Таблица18[р/р],"3/8",Таблица18[Ф. И. О.],B11) -> 0 | N11: 1 | O11: =SUMIFS(#REF!,#REF!,"1",#REF!,"4/12",#REF!,B11) ->  | P11: =ROUND(M11*O11,2) ->  | Q11: =база!L9 -> 0 | R11: 1 | S11: =SUMIFS(Таблица18[сумма],Таблица18[р/р],"4/16",Таблица18[коэф],"1",Таблица18[Ф. И. О.],B11) -> 0 | U11: =база!M9 -> 0 | V11: 1 | W11: =SUMIFS(Таблица18[сумма],Таблица18[коэф],"1",Таблица18[р/р],"4/24",Таблица18[Ф. И. О.],B11) -> 0 | AC11: =IF(SUMIFS(Таблица18[Столбец1],Таблица18[Ф. И. О.],B11)=Z10,,B11&" СУММА не верна") -> работник3 СУММА не верна
N12: 1.1 | O12: =SUMIFS(#REF!,#REF!,"1.1",#REF!,"3/12",#REF!,B11) ->  | P12: =ROUND(M12*N12*O12,2) ->  | Q12: =база!L8 -> 0 | R12: 1.1 | S12: =SUMIFS(Таблица18[сумма],Таблица18[р/р],"3/16",Таблица18[коэф],"1.1",Таблица18[Ф. И. О.],B11) -> 0 | T12: =SUMIFS(Таблица18[Столбец1],Таблица18[р/р],"3/16",Таблица18[коэф],"1.1",Таблица18[Ф. И. О.],Лист1!B11) -> 0 | U12: =база!M8 -> 0 | V12: 1.1 | W12: =SUMIFS(Таблица18[сумма],Таблица18[коэф],"1.1",Таблица18[р/р],"3/24",Таблица18[Ф. И. О.],B11) -> 0 | X12: =SUMIFS(Таблица18[Столбец1],Таблица18[р/р],"3/24",Таблица18[коэф],"1.1",Таблица18[Ф. И. О.],Лист1!B11) -> 0 | AC12: =IF(SUMIFS(Таблица18[сумма],Таблица18[Ф. И. О.],B11)=Y10,,B11&" часы не верны") -> 0
F13: 1.5 | G13: =SUMIFS(Таблица18[сумма],Таблица18[коэф],"1.5",Таблица18[р/р],"2/4",Таблица18[Ф. И. О.],B11) -> 0 | I13: =база!J9 -> 0 | J13: 1.5 | K13: =SUMIFS(Таблица18[сумма],Таблица18[коэф],"1.5",Таблица18[р/р],"4/8",Таблица18[Ф. И. О.],B11) -> 0 | L13: =SUMIFS(Таблица18[Столбец1],Таблица18[р/р],"4/8",Таблица18[коэф],"1.5",Таблица18[Ф. И. О.],Лист1!B11) -> 0 | N13: 1.5 | O13: =SUMIFS(#REF!,#REF!,"1.5",#REF!,"3/12",#REF!,B11) ->  | Q13: =база!L8 -> 0 | R13: 1.5 | S13: =SUMIFS(Таблица18[сумма],Таблица18[р/р],"3/16",Таблица18[коэф],"1.5",Таблица18[Ф. И. О.],B11) -> 0 | U13: =база!M8 -> 0 | V13: 1.5 | W13: =SUMIFS(Таблица18[сумма],Таблица18[коэф],"1.5",Таблица18[р/р],"3/24",Таблица18[Ф. И. О.],B11) -> 0
A14: 3 | C14: =INDEX(база!E2:E32, MATCH(B15,база!B2:B32,0)) -> 15043 | D14: =INDEX(база!D2:D32, MATCH(B15,база!B2:B32,0)) -> 3 | E14: =IF(D14<=3,база!I12,база!I13) -> 0 | F14: 1 | G14: =SUMIFS(Таблица18[сумма],Таблица18[коэф],"1",Таблица18[р/р],"2/4",Таблица18[Ф. И. О.],B15) -> 0 | I14: =IF(D14<=3,база!J12,база!J13) -> 0 | J14: 1 | K14: =SUMIFS(Таблица18[сумма],Таблица18[коэф],"1",Таблица18[р/р],"2/8",Таблица18[Ф. И. О.],B15) -> 0 | N14: 1 | O14: =SUMIFS(#REF!,#REF!,"1",#REF!,"3/12",#REF!,B15) ->  | Q14: =IF(D14<=3,база!L12,база!L13) -> 0 | R14: 1 | S14: 4 | T14: =SUMIFS(Таблица18[Столбец1],Таблица18[р/р],"3/16",Таблица18[коэф],"1",Таблица18[Ф. И. О.],Лист1!B15) -> 1253.264 | U14: =IF(D14<=3,база!M12,база!M13) -> 0 | V14: 1 | W14: =SUMIFS(Таблица18[сумма],Таблица18[коэф],"1",Таблица18[р/р],"3/24",Таблица18[Ф. И. О.],B15) -> 0 | Y14: =SUM(W14:W17,S14:S17,K14:K17,G14:G17) -> 4 | Z14: =SUM(H14:H17,L14:L17,T14:T17,X14:X17) -> 1253.264
B15: работник4 | E15: =IF(D14<=3,база!I12,база!I13) -> 0 | F15: 1 | G15: =SUMIFS(Таблица18[сумма],Таблица18[коэф],"1",Таблица18[р/р],"3/4",Таблица18[Ф. И. О.],B15) -> 0 | H15: =SUMIFS(Таблица18[Столбец1],Таблица18[р/р],"3/4",Таблица18[коэф],"1",Таблица18[Ф. И. О.],Лист1!B15) -> 0 | I15: =IF(D14<=3,база!J12,база!J13) -> 0 | J15: 1 | K15: =SUMIFS(Таблица18[сумма],Таблица18[коэф],"1",Таблица18[р/р],"3/8",Таблица18[Ф. И. О.],B15) -> 0 | N15: 1 | O15: =SUMIFS(#REF!,#REF!,"1",#REF!,"4/12",#REF!,B15) ->  | P15: =ROUND(M15*O15,2) ->  | Q15: =база!L13 -> 0 | R15: 1 | S15: =SUMIFS(Таблица18[сумма],Таблица18[р/р],"4/16",Таблица18[коэф],"1",Таблица18[Ф. И. О.],B15) -> 0 | U15: =база!M13 -> 0 | V15: 1 | W15: =SUMIFS(Таблица18[сумма],Таблица18[коэф],"1",Таблица18[р/р],"4/24",Таблица18[Ф. И. О.],B15) -> 0 | AC15: =IF(SUMIFS(Таблица18[Столбец1],Таблица18[Ф. И. О.],B15)=Z14,,B15&" СУММА не верна") -> 0
N16: 1.1 | O16: =SUMIFS(#REF!,#REF!,"1.1",#REF!,"3/12",#REF!,B15) ->  | P16: =ROUND(M16*N16*O16,2) ->  | Q16: =база!L12 -> 0 | R16: 1.1 | S16: =SUMIFS(Таблица18[сумма],Таблица18[р/р],"3/16",Таблица18[коэф],"1.1",Таблица18[Ф. И. О.],B15) -> 0 | T16: =SUMIFS(Таблица18[Столбец1],Таблица18[р/р],"3/16",Таблица18[коэф],"1.1",Таблица18[Ф. И. О.],Лист1!B15) -> 0 | U16: =база!M12 -> 0 | V16: 1.1 | W16: =SUMIFS(Таблица18[сумма],Таблица18[коэф],"1.1",Таблица18[р/р],"3/24",Таблица18[Ф. И. О.],B15) -> 0 | X16: =SUMIFS(Таблица18[Столбец1],Таблица18[р/р],"3/24",Таблица18[коэф],"1.1",Таблица18[Ф. И. О.],Лист1!B15) -> 0 | AC16: =IF(SUMIFS(Таблица18[сумма],Таблица18[Ф. И. О.],B15)=Y14,,B15&" часы не верны") -> работник4 часы не верны
F17: 1.5 | G17: =SUMIFS(Таблица18[сумма],Таблица18[коэф],"1.5",Таблица18[р/р],"2/4",Таблица18[Ф. И. О.],B15) -> 0 | I17: =база!J13 -> 0 | J17: 1.5 | K17: =SUMIFS(Таблица18[сумма],Таблица18[коэф],"1.5",Таблица18[р/р],"4/8",Таблица18[Ф. И. О.],B15) -> 0 | L17: =SUMIFS(Таблица18[Столбец1],Таблица18[р/р],"4/8",Таблица18[коэф],"1.5",Таблица18[Ф. И. О.],Лист1!B15) -> 0 | N17: 1.5 | O17: =SUMIFS(#REF!,#REF!,"1.5",#REF!,"3/12",#REF!,B15) ->  | Q17: =база!L12 -> 0 | R17: 1.5 | S17: =SUMIFS(Таблица18[сумма],Таблица18[р/р],"3/16",Таблица18[коэф],"1.5",Таблица18[Ф. И. О.],B15) -> 0 | U17: =база!M12 -> 0 | V17: 1.5 | W17: =SUMIFS(Таблица18[сумма],Таблица18[коэф],"1.5",Таблица18[р/р],"3/24",Таблица18[Ф. И. О.],B15) -> 0
A18: 4 | C18: =INDEX(база!E6:E36, MATCH(B19,база!B6:B36,0)) -> 15894 | D18: =INDEX(база!D6:D36, MATCH(B19,база!B6:B36,0)) -> 3 | E18: =IF(D18<=3,база!I16,база!I17) -> 0 | F18: 1 | G18: =SUMIFS(Таблица18[сумма],Таблица18[коэф],"1",Таблица18[р/р],"2/4",Таблица18[Ф. И. О.],B19) -> 0 | I18: =IF(D18<=3,база!J16,база!J17) -> 0 | J18: 1 | K18: =SUMIFS(Таблица18[сумма],Таблица18[коэф],"1",Таблица18[р/р],"2/8",Таблица18[Ф. И. О.],B19) -> 0 | N18: 1 | O18: =SUMIFS(#REF!,#REF!,"1",#REF!,"3/12",#REF!,B19) ->  | Q18: =IF(D18<=3,база!L16,база!L17) -> 0 | R18: 1 | S18: =SUMIFS(Таблица18[сумма],Таблица18[коэф],"1",Таблица18[р/р],"3/16",Таблица18[Ф. И. О.],B19) -> 4.8 | T18: =SUMIFS(Таблица18[Столбец1],Таблица18[р/р],"3/16",Таблица18[коэф],"1",Таблица18[Ф. И. О.],Лист1!B19) -> 1234.576 | U18: =IF(D18<=3,база!M16,база!M17) -> 0 | V18: 1 | W18: =SUMIFS(Таблица18[сумма],Таблица18[коэф],"1",Таблица18[р/р],"3/24",Таблица18[Ф. И. О.],B19) -> 3 | Y18: =SUM(W18:W21,S18:S21,K18:K21,G18:G21) -> 14.8 | Z18: =SUM(H18:H21,L18:L21,T18:T21,X18:X21) -> 3813.636
B19: работник6 | E19: =IF(D18<=3,база!I16,база!I17) -> 0 | F19: 1 | G19: =SUMIFS(Таблица18[сумма],Таблица18[коэф],"1",Таблица18[р/р],"3/4",Таблица18[Ф. И. О.],B19) -> 3 | H19: =SUMIFS(Таблица18[Столбец1],Таблица18[р/р],"3/4",Таблица18[коэф],"1",Таблица18[Ф. И. О.],Лист1!B19) -> 759.2 | I19: =IF(D18<=3,база!J16,база!J17) -> 0 | J19: 1 | K19: =SUMIFS(Таблица18[сумма],Таблица18[коэф],"1",Таблица18[р/р],"3/8",Таблица18[Ф. И. О.],B19) -> 0 | N19: 1 | O19: =SUMIFS(#REF!,#REF!,"1",#REF!,"4/12",#REF!,B19) ->  | P19: =ROUND(M19*O19,2) ->  | Q19: =база!L17 -> 0 | R19: 1 | S19: =SUMIFS(Таблица18[сумма],Таблица18[р/р],"4/16",Таблица18[коэф],"1",Таблица18[Ф. И. О.],B19) -> 0 | U19: =база!M17 -> 0 | V19: 1 | W19: =SUMIFS(Таблица18[сумма],Таблица18[коэф],"1",Таблица18[р/р],"4/24",Таблица18[Ф. И. О.],B19) -> 0 | AC19: =IF(SUMIFS(Таблица18[Столбец1],Таблица18[Ф. И. О.],B19)=Z18,,B19&" СУММА не верна") -> работник6 СУММА не верна
N20: 1.1 | O20: =SUMIFS(#REF!,#REF!,"1.1",#REF!,"3/12",#REF!,B19) ->  | P20: =ROUND(M20*N20*O20,2) ->  | Q20: =база!L16 -> 0 | R20: 1.1 | S20: =SUMIFS(Таблица18[сумма],Таблица18[р/р],"3/16",Таблица18[коэф],"1.1",Таблица18[Ф. И. О.],B19) -> 0 | T20: =SUMIFS(Таблица18[Столбец1],Таблица18[р/р],"3/16",Таблица18[коэф],"1.1",Таблица18[Ф. И. О.],Лист1!B19) -> 0 | U20: =база!M16 -> 0 | V20: 1.1 | W20: =SUMIFS(Таблица18[сумма],Таблица18[коэф],"1.1",Таблица18[р/р],"3/24",Таблица18[Ф. И. О.],B19) -> 0 | X20: =SUMIFS(Таблица18[Столбец1],Таблица18[р/р],"3/24",Таблица18[коэф],"1.1",Таблица18[Ф. И. О.],Лист1!B19) -> 0 | AC20: =IF(SUMIFS(Таблица18[сумма],Таблица18[Ф. И. О.],B19)=Y18,,B19&" часы не верны") -> 0
F21: 1.5 | G21: =SUMIFS(Таблица18[сумма],Таблица18[коэф],"1.5",Таблица18[р/р],"2/4",Таблица18[Ф. И. О.],B19) -> 0 | I21: =база!J17 -> 0 | J21: 1.5 | K21: =SUMIFS(Таблица18[сумма],Таблица18[коэф],"1.5",Таблица18[р/р],"4/8",Таблица18[Ф. И. О.],B19) -> 4 | L21: =SUMIFS(Таблица18[Столбец1],Таблица18[р/р],"4/8",Таблица18[коэф],"1.5",Таблица18[Ф. И. О.],Лист1!B19) -> 1819.86 | N21: 1.5 | O21: =SUMIFS(#REF!,#REF!,"1.5",#REF!,"3/12",#REF!,B19) ->  | Q21: =база!L16 -> 0 | R21: 1.5 | S21: =SUMIFS(Таблица18[сумма],Таблица18[р/р],"3/16",Таблица18[коэф],"1.5",Таблица18[Ф. И. О.],B19) -> 0 | U21: =база!M16 -> 0 | V21: 1.5 | W21: =SUMIFS(Таблица18[сумма],Таблица18[коэф],"1.5",Таблица18[р/р],"3/24",Таблица18[Ф. И. О.],B19) -> 0
C22: ,

Sheet расчет (hidden)
A1: производств уч. № 1
J2: ЗП | L2: декабрь | T2: 2021
K3: СВЕРХУРОЧНАЯ РАБОТА
B4: ФИО | C4: Табельный номер | D4: разряд работника | E4: 0.04 | I4: 0.08 | M4: 0.12 | Q4: 0.16 | U4: 0.24 | Y4: итого часы | Z4: итого сумма, руб | AA4: подпись работник
E5: тариф | F5: коэффициент | G5: часы | H5: сумма | I5: тариф | J5: коэффициент | K5: часы | L5: сумма | M5: тариф | N5: коэффициент | O5: часы | P5: сумма | Q5: тариф | R5: коэффициент | S5: часы | T5: сумма | U5: тариф | V5: коэффициент | W5: часы | X5: сумма
A6: 1 | C6: =INDEX(база!E2:E24, MATCH(B7,база!B2:B24,0)) -> 15894 | D6: =INDEX(база!D2:D24, MATCH(B7,база!B2:B24,0)) -> 3 | E6: =IF(D6<=3,база!I4,база!I5) -> 51.84 | F6: 1 | G6: =SUMIFS(Таблица18[сумма],Таблица18[коэф],"1",Таблица18[р/р],"2/4",Таблица18[Ф. И. О.],B7) -> 0 | H6: =SUM(IFERROR(--TEXT(MMULT(TRANSPOSE(Таблица18[[1]:[30]]*(Таблица18[Ф. И. О.]=$B7)*(Таблица18[р/р]=расчет!$D6&"/"&TRUNC(расчет!E4*100))),Таблица18[год]^0*2)-1,"0;\0;\0"),))*E6*F6 -> 259.2 | I6: =IF(D6<=3,база!J4,база!J5) -> 57.68 | J6: 1 | K6: =SUMIFS(Таблица18[сумма],Таблица18[коэф],"1",Таблица18[р/р],"2/8",Таблица18[Ф. И. О.],B7) -> 0 | L6: =SUM(IFERROR(--TEXT(MMULT(TRANSPOSE(Таблица18[[1]:[30]]*(Таблица18[Ф. И. О.]=$B7)*(Таблица18[р/р]=расчет!$D6&"/"&TRUNC(расчет!I4*100))),Таблица18[год]^0*2)-1,"0;\0;\0"),))*I6*J6 -> 0 | N6: 1 | O6: =SUMIFS(#REF!,#REF!,"1",#REF!,"3/12",#REF!,B7) ->  | P6: =ROUND(M6*N6*O6,2) ->  | Q6: =IF(D6<=3,база!L4,база!L5) -> 69.36 | R6: 1 | S6: =SUMIFS(Таблица18[сумма],Таблица18[коэф],"1",Таблица18[р/р],"3/16",Таблица18[Ф. И. О.],B7) -> 4.8 | T6: =SUM(IFERROR(--TEXT(MMULT(TRANSPOSE(Таблица18[[1]:[30]]*(Таблица18[Ф. И. О.]=$B7)*(Таблица18[р/р]=расчет!$D6&"/"&TRUNC(расчет!Q4*100))),Таблица18[год]^0*2)-1,"0;\0;\0"),))*Q6*R6 -> 554.88 | U6: =IF(D6<=3,база!M4,база!M5) -> 81.04 | V6: 1 | W6: =SUMIFS(Таблица18[сумма],Таблица18[коэф],"1",Таблица18[р/р],"3/24",Таблица18[Ф. И. О.],B7) -> 3 | X6: =SUM(IFERROR(--TEXT(MMULT(TRANSPOSE(Таблица18[[1]:[30]]*(Таблица18[Ф. И. О.]=$B7)*(Таблица18[р/р]=расчет!$D6&"/"&TRUNC(расчет!U4*100))),Таблица18[год]^0*2)-1,"0;\0;\0"),))*U6*V6 -> 405.2 | Y6: =SUM(W6:W9,S6:S9,K6:K9,G6:G9) -> 14.8 | Z6: =SUM(H6:H9,L6:L9,T6:T9,X6:X9) -> 2662.76
B7: работник6 | E7: =IF(D6<=3,база!I4,база!I5) -> 51.84 | F7: 1 | G7: =SUMIFS(Таблица18[сумма],Таблица18[коэф],"1",Таблица18[р/р],"3/4",Таблица18[Ф. И. О.],B7) -> 3 | H7: =SUM(IFERROR(--TEXT(MMULT(TRANSPOSE(Таблица18[[1]:[30]]*(Таблица18[Ф. И. О.]=$B7)*(Таблица18[р/р]=расчет!$D6&"/"&TRUNC(расчет!E4*100))),Таблица18[год]^0*2)-1,"0;\0;\0"),))*E7*F7 -> 259.2 | I7: =IF(D6<=3,база!J4,база!J5) -> 57.68 | J7: 1 | K7: =SUMIFS(Таблица18[сумма],Таблица18[коэф],"1",Таблица18[р/р],"3/8",Таблица18[Ф. И. О.],B7) -> 0 | L7: =SUM(IFERROR(--TEXT(MMULT(TRANSPOSE(Таблица18[[1]:[30]]*(Таблица18[Ф. И. О.]=$B7)*(Таблица18[р/р]=расчет!$D6&"/"&TRUNC(расчет!I4*100))),Таблица18[год]^0*2)-1,"0;\0;\0"),))*I7*J7 -> 0 | N7: 1 | O7: =SUMIFS(#REF!,#REF!,"1",#REF!,"4/12",#REF!,B7) ->  | P7: =ROUND(M7*O7,2) ->  | Q7: =база!L5 -> 86.16 | R7: 1 | S7: =SUMIFS(Таблица18[сумма],Таблица18[р/р],"4/16",Таблица18[коэф],"1",Таблица18[Ф. И. О.],B7) -> 0 | T7: =SUM(IFERROR(--TEXT(MMULT(TRANSPOSE(Таблица18[[1]:[30]]*(Таблица18[Ф. И. О.]=$B7)*(Таблица18[р/р]=расчет!$D6&"/"&TRUNC(расчет!Q4*100))),Таблица18[год]^0*2)-1,"0;\0;\0"),))*Q7*R7 -> 689.28 | U7: =база!M5 -> 99 | V7: 1 | W7: =SUMIFS(Таблица18[сумма],Таблица18[коэф],"1",Таблица18[р/р],"4/24",Таблица18[Ф. И. О.],B7) -> 0 | X7: =SUM(IFERROR(--TEXT(MMULT(TRANSPOSE(Таблица18[[1]:[30]]*(Таблица18[Ф. И. О.]=$B7)*(Таблица18[р/р]=расчет!$D6&"/"&TRUNC(расчет!U4*100))),Таблица18[год]^0*2)-1,"0;\0;\0"),))*U7*V7 -> 495
H8: =SUM(IFERROR(--TEXT(MMULT(TRANSPOSE(Таблица18[[1]:[30]]*(Таблица18[Ф. И. О.]=$B7)*(Таблица18[р/р]=расчет!$D6&"/"&TRUNC(расчет!E5*100))),Таблица18[год]^0*2)-1,"0;\0;\0"),))*E8*F8 -> 0 | L8: =SUM(IFERROR(--TEXT(MMULT(TRANSPOSE(Таблица18[[1]:[30]]*(Таблица18[Ф. И. О.]=$B7)*(Таблица18[р/р]=расчет!$D6&"/"&TRUNC(расчет!I5*100))),Таблица18[год]^0*2)-1,"0;\0;\0"),))*I8*J8 -> 0 | N8: 1.1 | O8: =SUMIFS(#REF!,#REF!,"1.1",#REF!,"3/12",#REF!,B7) ->  | P8: =ROUND(M8*N8*O8,2) ->  | Q8: =база!L4 -> 69.36 | R8: 1.1 | S8: =SUMIFS(Таблица18[сумма],Таблица18[р/р],"3/16",Таблица18[коэф],"1.1",Таблица18[Ф. И. О.],B7) -> 0 | T8: =SUM(IFERROR(--TEXT(MMULT(TRANSPOSE(Таблица18[[1]:[30]]*(Таблица18[Ф. И. О.]=$B7)*(Таблица18[р/р]=расчет!$D6&"/"&TRUNC(расчет!Q5*100))),Таблица18[год]^0*2)-1,"0;\0;\0"),))*Q8*R8 -> 0 | U8: =база!M4 -> 81.04 | V8: 1.1 | W8: =SUMIFS(Таблица18[сумма],Таблица18[коэф],"1.1",Таблица18[р/р],"3/24",Таблица18[Ф. И. О.],B7) -> 0 | X8: =SUM(IFERROR(--TEXT(MMULT(TRANSPOSE(Таблица18[[1]:[30]]*(Таблица18[Ф. И. О.]=$B7)*(Таблица18[р/р]=расчет!$D6&"/"&TRUNC(расчет!U5*100))),Таблица18[год]^0*2)-1,"0;\0;\0"),))*U8*V8 -> 0
F9: 1.5 | G9: =SUMIFS(Таблица18[сумма],Таблица18[коэф],"1.5",Таблица18[р/р],"2/4",Таблица18[Ф. И. О.],B7) -> 0 | H9: =SUM(IFERROR(--TEXT(MMULT(TRANSPOSE(Таблица18[[1]:[30]]*(Таблица18[Ф. И. О.]=$B7)*(Таблица18[р/р]=расчет!$D6&"/"&TRUNC(расчет!E6*100))),Таблица18[год]^0*2)-1,"0;\0;\0"),))*E9*F9 -> 0 | I9: =база!J5 -> 73.32 | J9: 1.5 | K9: =SUMIFS(Таблица18[сумма],Таблица18[коэф],"1.5",Таблица18[р/р],"4/8",Таблица18[Ф. И. О.],B7) -> 4 | L9: =SUM(IFERROR(--TEXT(MMULT(TRANSPOSE(Таблица18[[1]:[30]]*(Таблица18[Ф. И. О.]=$B7)*(Таблица18[р/р]=расчет!$D6&"/"&TRUNC(расчет!I6*100))),Таблица18[год]^0*2)-1,"0;\0;\0"),))*I9*J9 -> 0 | N9: 1.5 | O9: =SUMIFS(#REF!,#REF!,"1.5",#REF!,"3/12",#REF!,B7) ->  | P9: =ROUND(M9*N9*O9,2) ->  | Q9: =база!L4 -> 69.36 | R9: 1.5 | S9: =SUMIFS(Таблица18[сумма],Таблица18[р/р],"3/16",Таблица18[коэф],"1.5",Таблица18[Ф. И. О.],B7) -> 0 | T9: =SUM(IFERROR(--TEXT(MMULT(TRANSPOSE(Таблица18[[1]:[30]]*(Таблица18[Ф. И. О.]=$B7)*(Таблица18[р/р]=расчет!$D6&"/"&TRUNC(расчет!Q6*100))),Таблица18[год]^0*2)-1,"0;\0;\0"),))*Q9*R9 -> 0 | U9: =база!M4 -> 81.04 | V9: 1.5 | W9: =SUMIFS(Таблица18[сумма],Таблица18[коэф],"1.5",Таблица18[р/р],"3/24",Таблица18[Ф. И. О.],B7) -> 0 | X9: =SUM(IFERROR(--TEXT(MMULT(TRANSPOSE(Таблица18[[1]:[30]]*(Таблица18[Ф. И. О.]=$B7)*(Таблица18[р/р]=расчет!$D6&"/"&TRUNC(расчет!U6*100))),Таблица18[год]^0*2)-1,"0;\0;\0"),))*U9*V9 -> 0
B11: значение в ячейке "СУММА" =сумма первых двух часов одного дня, помноженная*1.5 *на тариф *на коэф (Q*R*2 часа*1.5)+ сумма оставшегося времени в этот же день,умноженная на два на тариф и коэф(Q*R*оставшееся время*2)
S12: "+ второй день+третий день…и так далее"
